Department Family,Entity,Date Paid,Expense Type,Expense Area,Supplier,Transaction Number,Amount (�),Supplier VAT Registration Number
BEIS,Met Office,2021-07-02,11 SERVICES,PEOPLE,SKILLTEC LIMITED,453054,995,909833105
BEIS,Met Office,2021-07-02,INFORMATION TECHNOLOGY,PROGRAMMES,Campbell Scientific Ltd,455320,2049.3,428453933
BEIS,Met Office,2021-07-02,13 MISCELLANEOUS,CHIEF FINANCIAL OFFICER,CANON UK LTD,457368,-89.74,523797128
BEIS,Met Office,2021-07-02,11 SERVICES,PROGRAMMES,BAE SYSTEMS APPLIED INTELLIGENCE LIMITED,457479,20474,GB641407169
BEIS,Met Office,2021-07-02,11 SERVICES,PROGRAMMES,BAE SYSTEMS APPLIED INTELLIGENCE LIMITED,457535,21807,GB641407169
BEIS,Met Office,2021-07-02,11 SERVICES,PROGRAMMES,BAE SYSTEMS APPLIED INTELLIGENCE LIMITED,457536,7504,GB641407169
BEIS,Met Office,2021-07-02,11 SERVICES,PROGRAMMES,BAE SYSTEMS APPLIED INTELLIGENCE LIMITED,457539,15008,GB641407169
BEIS,Met Office,2021-07-02,11 SERVICES,PROGRAMMES,BAE SYSTEMS APPLIED INTELLIGENCE LIMITED,457569,12540,GB641407169
BEIS,Met Office,2021-07-02,11 SERVICES,PROGRAMMES,BAE SYSTEMS APPLIED INTELLIGENCE LIMITED,457570,9522.39,GB641407169
BEIS,Met Office,2021-07-02,11 SERVICES,CHIEF FINANCIAL OFFICER,WEBEX COMMUNICATIONS UK LTD,457706,209.92,815974302
BEIS,Met Office,2021-07-02,13 MISCELLANEOUS,CHIEF FINANCIAL OFFICER,CANON UK LTD,457708,982.79,523797128
BEIS,Met Office,2021-07-02,13 MISCELLANEOUS,CHIEF FINANCIAL OFFICER,CANON UK LTD,457710,569.3,523797128
BEIS,Met Office,2021-07-02,13 MISCELLANEOUS,CHIEF FINANCIAL OFFICER,CANON UK LTD,457710,6,523797128
BEIS,Met Office,2021-07-02,13 MISCELLANEOUS,CHIEF FINANCIAL OFFICER,CANON UK LTD,457710,14.03,523797128
BEIS,Met Office,2021-07-02,13 MISCELLANEOUS,CHIEF FINANCIAL OFFICER,CANON UK LTD,457710,10.3,523797128
BEIS,Met Office,2021-07-02,13 MISCELLANEOUS,CHIEF FINANCIAL OFFICER,CANON UK LTD,457710,0.28,523797128
BEIS,Met Office,2021-07-02,13 MISCELLANEOUS,CHIEF FINANCIAL OFFICER,CANON UK LTD,457710,5.33,523797128
BEIS,Met Office,2021-07-02,13 MISCELLANEOUS,CHIEF FINANCIAL OFFICER,CANON UK LTD,457710,6.3,523797128
BEIS,Met Office,2021-07-02,06 ACCOMMODATION,CHIEF FINANCIAL OFFICER,OCS Group UK Limited,457713,18530.05,GB238034379
BEIS,Met Office,2021-07-02,06 ACCOMMODATION,CHIEF FINANCIAL OFFICER,OCS Group UK Limited,457713,109308.18,GB238034379
BEIS,Met Office,2021-07-02,06 ACCOMMODATION,CHIEF FINANCIAL OFFICER,CBRE MANAGED SERVICES LTD,457715,26298.84,853936883
BEIS,Met Office,2021-07-02,11 SERVICES,PROGRAMMES,JEREMY BENN ASSOCIATES LIMITED,457716,13500,GB 665300941
BEIS,Met Office,2021-07-02,06 ACCOMMODATION,CHIEF FINANCIAL OFFICER,CBRE MANAGED SERVICES LTD,457718,28989.36,853936883
BEIS,Met Office,2021-07-02,06 ACCOMMODATION,CHIEF FINANCIAL OFFICER,CBRE MANAGED SERVICES LTD,457722,141920.1,853936883
BEIS,Met Office,2021-07-02,06 ACCOMMODATION,CHIEF FINANCIAL OFFICER,D&G OFFICE SERVICES LTD,457726,276.25,272997547
BEIS,Met Office,2021-07-02,06 ACCOMMODATION,CHIEF FINANCIAL OFFICER,D&G OFFICE SERVICES LTD,457726,276.25,272997547
BEIS,Met Office,2021-07-02,06 ACCOMMODATION,CHIEF FINANCIAL OFFICER,THE CLEANING CREW COMPANY,457727,609,343579772
BEIS,Met Office,2021-07-02,10 EQUIPMENT MAINTENANCE,TECHNOLOGY AND CIO,Hewlett Packard Ltd,457736,435689.38,314149679
BEIS,Met Office,2021-07-02,10 EQUIPMENT MAINTENANCE,TECHNOLOGY AND CIO,Hewlett Packard Ltd,457736,37060.62,314149679
BEIS,Met Office,2021-07-02,10 EQUIPMENT MAINTENANCE,TECHNOLOGY AND CIO,Hewlett Packard Ltd,457736,525000,314149679
BEIS,Met Office,2021-07-02,11 SERVICES,CHIEF FINANCIAL OFFICER,OSBORNE CLARKE LLP,457741,1250,GB138187353
BEIS,Met Office,2021-07-02,11 SERVICES,PEOPLE,OLD FROG LTD,457742,2820,642591532
BEIS,Met Office,2021-07-02,13 MISCELLANEOUS,CHIEF FINANCIAL OFFICER,EDEN SPRINGS UK LTD,457743,317.02,232160411
BEIS,Met Office,2021-07-02,10 EQUIPMENT MAINTENANCE,TECHNOLOGY AND CIO,IP PERFORMANCE LTD,457768,7813,650541851
BEIS,Met Office,2021-07-02,11 SERVICES,MARKETS,NATS (EN ROUTE) PLC,457769,269500,440379456004
BEIS,Met Office,2021-07-02,03 STAFF COSTS T&S,CHIEF FINANCIAL OFFICER,RAINBOW CITY TAXIS,457770,21.3,724295039
BEIS,Met Office,2021-07-02,07 EQUIPMENT,PROGRAMMES,PRECISION WATERJET LTD,457772,104,879979318
BEIS,Met Office,2021-07-02,07 EQUIPMENT,PROGRAMMES,PRECISION WATERJET LTD,457772,15,879979318
BEIS,Met Office,2021-07-02,07 EQUIPMENT,PROGRAMMES,PRECISION WATERJET LTD,457772,115.8,879979318
BEIS,Met Office,2021-07-02,06 ACCOMMODATION,CHIEF FINANCIAL OFFICER,Belfast International Airport Ltd,457773,243.75,617777601
BEIS,Met Office,2021-07-02,11 SERVICES,PROGRAMMES,JEREMY BENN ASSOCIATES LIMITED,457775,20150,GB 665300941
BEIS,Met Office,2021-07-02,11 SERVICES,MARKETS,DBS FINANCE RECEIPTS CTS,457777,12617.62,888805068
BEIS,Met Office,2021-07-02,07 EQUIPMENT,TECHNOLOGY AND CIO,COMPUTACENTER (UK) LTD,457778,3931.38,490334648
BEIS,Met Office,2021-07-02,11 SERVICES,PROGRAMMES,Campbell Scientific Ltd,457782,22,428453933
BEIS,Met Office,2021-07-02,11 SERVICES,TECHNOLOGY AND CIO,RISUAL LIMITED,457783,2550,864480893
BEIS,Met Office,2021-07-02,13 MISCELLANEOUS,SCIENCE,University Of Exeter,457784,1000,142047795
BEIS,Met Office,2021-07-02,11 SERVICES,MARKETS,EYECADEMY LTD,457787,10050,GB937915092
BEIS,Met Office,2021-07-02,06 ACCOMMODATION,CHIEF FINANCIAL OFFICER,BANNER GROUP LIMITED,457794,7.92,GB391085740
BEIS,Met Office,2021-07-02,07 EQUIPMENT,TECHNOLOGY AND CIO,COMPUTACENTER (UK) LTD,457798,691.46,490334648
BEIS,Met Office,2021-07-02,11 SERVICES,PEOPLE,LUMESSE LTD,457803,35340.14,115096236
BEIS,Met Office,2021-07-02,11 SERVICES,MARKETS,University Of Bristol,457804,4000,991261800
BEIS,Met Office,2021-07-02,06 ACCOMMODATION,CHIEF FINANCIAL OFFICER,NEVIS RANGE MOUNTAIN EXPERIENCE,457806,198.44,GB481585224
BEIS,Met Office,2021-07-02,06 ACCOMMODATION,CHIEF FINANCIAL OFFICER,NEVIS RANGE MOUNTAIN EXPERIENCE,457806,23.88,GB481585224
BEIS,Met Office,2021-07-02,06 ACCOMMODATION,CHIEF FINANCIAL OFFICER,NEVIS RANGE MOUNTAIN EXPERIENCE,457806,115.76,GB481585224
BEIS,Met Office,2021-07-02,06 ACCOMMODATION,CHIEF FINANCIAL OFFICER,NEVIS RANGE MOUNTAIN EXPERIENCE,457806,22.05,GB481585224
BEIS,Met Office,2021-07-02,07 EQUIPMENT,SERVICES,Gill Instruments Ltd,457807,3900,522056678
BEIS,Met Office,2021-07-02,07 EQUIPMENT,SERVICES,Gill Instruments Ltd,457807,2808,522056678
BEIS,Met Office,2021-07-02,07 EQUIPMENT,SERVICES,Gill Instruments Ltd,457807,10,522056678
BEIS,Met Office,2021-07-02,13 MISCELLANEOUS,CHIEF FINANCIAL OFFICER,CARDIFF EXECUTIVE CENTRE LTD,457809,3.6,864497378
BEIS,Met Office,2021-07-02,11 SERVICES,CHIEF FINANCIAL OFFICER,LICENCE BUREAU LTD,457810,69.4,820219467
BEIS,Met Office,2021-07-02,06 ACCOMMODATION,CHIEF FINANCIAL OFFICER,MORAY COUNCIL,457811,170.82,663755506
BEIS,Met Office,2021-07-02,06 ACCOMMODATION,CHIEF FINANCIAL OFFICER,Shetland Islands Council,457814,319.2,267858304
BEIS,Met Office,2021-07-02,11 SERVICES,TECHNOLOGY AND CIO,FLYFORM LTD,457816,7960,237333808
BEIS,Met Office,2021-07-02,06 ACCOMMODATION,CHIEF FINANCIAL OFFICER,POWER NI ENERGY LTD,457817,357,617518142
BEIS,Met Office,2021-07-02,06 ACCOMMODATION,CHIEF FINANCIAL OFFICER,WEST LANCASHIRE BOROUGH COUNCIL,457835,128.5,-
BEIS,Met Office,2021-07-02,06 ACCOMMODATION,CHIEF FINANCIAL OFFICER,WINGFIELD DIGBY SETTLED ESTATE,457836,2600,723281453
BEIS,Met Office,2021-07-02,06 ACCOMMODATION,CHIEF FINANCIAL OFFICER,Scottish Natural Heritage,457837,200,553740540
BEIS,Met Office,2021-07-02,06 ACCOMMODATION,CHIEF FINANCIAL OFFICER,BROWN & CO,457841,500,610538078
BEIS,Met Office,2021-07-05,11 SERVICES,TECHNOLOGY AND CIO,SOFTWAREONE,456017,368.7,GB 942 5301 43
BEIS,Met Office,2021-07-05,11 SERVICES,CHIEF FINANCIAL OFFICER,MITIE SECURITY LTD,457693,10263.36,416706654
BEIS,Met Office,2021-07-05,11 SERVICES,CHIEF FINANCIAL OFFICER,MITIE SECURITY LTD,457694,20526.35,416706654
BEIS,Met Office,2021-07-05,10 EQUIPMENT MAINTENANCE,SERVICES,YOUNG CALIBRATION LIMITED,457771,2925,673900720
BEIS,Met Office,2021-07-05,11 SERVICES,SERVICES,YOUNG CALIBRATION LIMITED,457771,15,673900720
BEIS,Met Office,2021-07-05,12 INTERNATIONAL,MARKETS,SWANTECH LOGISTICS LTD,457774,872.66,769332401
BEIS,Met Office,2021-07-05,08 SOFTWARE LICENCES,TECHNOLOGY AND CIO,SOFTWAREONE,457779,86256,GB 942 5301 43
BEIS,Met Office,2021-07-05,06 ACCOMMODATION,CHIEF FINANCIAL OFFICER,University Of Reading,457785,63710.58,200012659
BEIS,Met Office,2021-07-05,11 SERVICES,TECHNOLOGY AND CIO,SSE CONTRACTING LTD,457790,10393.84,382894546
BEIS,Met Office,2021-07-05,11 SERVICES,TECHNOLOGY AND CIO,SOFTWAREONE,457795,368.71,GB 942 5301 43
BEIS,Met Office,2021-07-05,11 SERVICES,TECHNOLOGY AND CIO,SOFTWAREONE,457796,348.65,GB 942 5301 43
BEIS,Met Office,2021-07-05,11 SERVICES,TECHNOLOGY AND CIO,SOFTWAREONE,457797,358.87,GB 942 5301 43
BEIS,Met Office,2021-07-05,06 ACCOMMODATION,CHIEF FINANCIAL OFFICER,THE CLEANING CREW COMPANY,457800,758,343579772
BEIS,Met Office,2021-07-05,11 SERVICES,PEOPLE,BI-DESIGN EUROPE LTD T/A HOME,457801,1771,-
BEIS,Met Office,2021-07-05,03 STAFF COSTS T&S,CHIEF FINANCIAL OFFICER,ENTERPRISE RENT A CAR UK LTD,457805,183.27,215557314
BEIS,Met Office,2021-07-05,11 SERVICES,PROGRAMMES,ALTO AEROSPACE LIMITED,457813,25311.6,275002528
BEIS,Met Office,2021-07-05,06 ACCOMMODATION,CHIEF FINANCIAL OFFICER,BUSINESS STREAM,457820,5333.98,945850885
BEIS,Met Office,2021-07-05,11 SERVICES,TECHNOLOGY AND CIO,WIREFAST LTD,457823,2716.81,749536001
BEIS,Met Office,2021-07-05,11 SERVICES,TECHNOLOGY AND CIO,WIREFAST LTD,457825,824.46,749536001
BEIS,Met Office,2021-07-05,06 ACCOMMODATION,CHIEF FINANCIAL OFFICER,BIDVEST NOONAN UK LTD,457834,34.9,GB847176988
BEIS,Met Office,2021-07-05,11 SERVICES,PEOPLE,BRIGHTCOVE INC,457840,4672.5,TAX 20-1579162
BEIS,Met Office,2021-07-05,11 SERVICES,TECHNOLOGY AND CIO,UKCLOUD LTD,457899,1608,172647982
BEIS,Met Office,2021-07-05,08 SOFTWARE LICENCES,TECHNOLOGY AND CIO,GOOGLE IRELAND LTD,457905,34.43,6388047V
BEIS,Met Office,2021-07-05,11 SERVICES,PEOPLE,LB TRAINING LTD,457909,650,-
BEIS,Met Office,2021-07-05,11 SERVICES,TECHNOLOGY AND CIO,SYNTHESYS SYSTEMS ENGINEERS LTD,457912,1741.5,499309492
BEIS,Met Office,2021-07-05,06 ACCOMMODATION,CHIEF FINANCIAL OFFICER,University Of Reading,457938,-63710.58,200012659
BEIS,Met Office,2021-07-05,06 ACCOMMODATION,CHIEF FINANCIAL OFFICER,WALMSLEY RESIDENTIAL LETTINGS LIMITED,457940,63710.58,200012659
BEIS,Met Office,2021-07-07,11 SERVICES,TECHNOLOGY AND CIO,AMAZON WEB SERVICES INC.,10271,10611.93,N/A
BEIS,Met Office,2021-07-07,08 SOFTWARE LICENCES,MARKETS,"INTELLOVATIONS, LLC",10295,1473.44,-
BEIS,Met Office,2021-07-07,11 SERVICES,SERVICES,"EUTELSAT, S.A.",22660,2935.95,-
BEIS,Met Office,2021-07-07,10 EQUIPMENT MAINTENANCE,SERVICES,RAYMETRICS S.A. (GREEK ACCOUNT),22670,6528.22,EL999641589
BEIS,Met Office,2021-07-07,11 SERVICES,MARKETS,Eumetsat,22671,6884.16,VE
BEIS,Met Office,2021-07-07,STOCK,SERVICES,FEINGERATEBAU K. FISCHER GMBH,22685,0,DE141292589
BEIS,Met Office,2021-07-07,TRADE CREDITORS,SERVICES,FEINGERATEBAU K. FISCHER GMBH,22685,247.73,DE141292589
BEIS,Met Office,2021-07-07,11 SERVICES,SERVICES,FEINGERATEBAU K. FISCHER GMBH,22685,30.97,DE141292589
BEIS,Met Office,2021-07-07,10 EQUIPMENT MAINTENANCE,SERVICES,CIMEL ELECTRONIQUE,22807,1200.94,FR89662017201
BEIS,Met Office,2021-07-07,06 ACCOMMODATION,CHIEF FINANCIAL OFFICER,ANGLIAN WATER BUSINESS NATIONAL LTD,454611,-121.7,51406002
BEIS,Met Office,2021-07-07,06 ACCOMMODATION,CHIEF FINANCIAL OFFICER,ANGLIAN WATER BUSINESS NATIONAL LTD,455004,54.09,51406002
BEIS,Met Office,2021-07-07,06 ACCOMMODATION,CHIEF FINANCIAL OFFICER,ANGLIAN WATER BUSINESS NATIONAL LTD,455005,29.33,51406002
BEIS,Met Office,2021-07-07,06 ACCOMMODATION,CHIEF FINANCIAL OFFICER,NATS (EN ROUTE) PLC,457670,6906.3,440379456004
BEIS,Met Office,2021-07-07,11 SERVICES,PROGRAMMES,Arup,457717,2694.38,524461265
BEIS,Met Office,2021-07-07,13 MISCELLANEOUS,CHIEF FINANCIAL OFFICER,POSTURITE (UK) LTD,457719,551.68,583565114
BEIS,Met Office,2021-07-07,08 SOFTWARE LICENCES,TECHNOLOGY AND CIO,PRESENTATION CARTOGRAPHY LTD,457776,9650,-
BEIS,Met Office,2021-07-07,04 CONTRACTORS,TECHNOLOGY AND CIO,HAYS SPECIALIST RECRUITMENT LTD,457791,479.38,773695871
BEIS,Met Office,2021-07-07,04 CONTRACTORS,PEOPLE,HAYS SPECIALIST RECRUITMENT LTD,457792,153.68,773695871
BEIS,Met Office,2021-07-07,04 CONTRACTORS,PEOPLE,MATRIX SCM LIMITED,457802,210761.31,249 5734 68
BEIS,Met Office,2021-07-07,06 ACCOMMODATION,CHIEF FINANCIAL OFFICER,CARDIFF EXECUTIVE CENTRE LTD,457808,2470,864497378
BEIS,Met Office,2021-07-07,13 MISCELLANEOUS,CHIEF FINANCIAL OFFICER,NORSCOTT VENDING SERVICES LTD,457819,85,751402071
BEIS,Met Office,2021-07-07,11 SERVICES,MARKETS,ADOPSTAR,457822,1250,115036848
BEIS,Met Office,2021-07-07,11 SERVICES,CHIEF FINANCIAL OFFICER,MITIE SECURITY LTD,457824,173.25,416706654
BEIS,Met Office,2021-07-07,06 ACCOMMODATION,CHIEF FINANCIAL OFFICER,MCKAY PLUMBING AND HEATING,457895,239,574498392
BEIS,Met Office,2021-07-07,08 SOFTWARE LICENCES,PEOPLE,CATALYST IT,457897,2075,978169262
BEIS,Met Office,2021-07-07,11 SERVICES,SERVICES,WORLDPAY LTD,457900,23.15,991280207
BEIS,Met Office,2021-07-07,07 EQUIPMENT,SERVICES,CLARKE LANE ENGINEERING LTD,457902,1360,412068487
BEIS,Met Office,2021-07-07,07 EQUIPMENT,SERVICES,CLARKE LANE ENGINEERING LTD,457902,130,412068487
BEIS,Met Office,2021-07-07,07 EQUIPMENT,SERVICES,CLARKE LANE ENGINEERING LTD,457902,96,412068487
BEIS,Met Office,2021-07-07,07 EQUIPMENT,SERVICES,CLARKE LANE ENGINEERING LTD,457902,106,412068487
BEIS,Met Office,2021-07-07,07 EQUIPMENT,SERVICES,CLARKE LANE ENGINEERING LTD,457902,184,412068487
BEIS,Met Office,2021-07-07,08 SOFTWARE LICENCES,TECHNOLOGY AND CIO,PROSPERON NETWORKS LTD,457903,3458.3,889545649
BEIS,Met Office,2021-07-07,11 SERVICES,SERVICES,Boc Ltd,457907,16130.31,226556555
BEIS,Met Office,2021-07-07,11 SERVICES,MARKETS,CACI LTD,457914,90508.64,380609841
BEIS,Met Office,2021-07-07,13 MISCELLANEOUS,SCIENCE,University Of Reading,457915,333.33,200012659
BEIS,Met Office,2021-07-07,11 SERVICES,PROGRAMMES,ROWE IT LTD,457921,75791.25,924964394
BEIS,Met Office,2021-07-07,11 SERVICES,PROGRAMMES,ROWE IT LTD,457922,9275,924964394
BEIS,Met Office,2021-07-07,11 SERVICES,PROGRAMMES,ROWE IT LTD,457923,44336.25,924964394
BEIS,Met Office,2021-07-07,11 SERVICES,PROGRAMMES,ROWE IT LTD,457925,98218.75,924964394
BEIS,Met Office,2021-07-07,11 SERVICES,PROGRAMMES,ROWE IT LTD,457926,16500,924964394
BEIS,Met Office,2021-07-07,13 MISCELLANEOUS,SCIENCE,University Of Reading,457927,1000,200012659
BEIS,Met Office,2021-07-07,06 ACCOMMODATION,SERVICES,INMARSAT SOLUTIONS (CANADA) INC,457928,57.64,766144223
BEIS,Met Office,2021-07-07,06 ACCOMMODATION,SERVICES,INMARSAT SOLUTIONS (CANADA) INC,457929,1331.06,766144223
BEIS,Met Office,2021-07-07,11 SERVICES,PROGRAMMES,HOGAN LOVELLS INTERNATIONAL LLP,457930,220927.33,GB123371543
BEIS,Met Office,2021-07-07,11 SERVICES,PROGRAMMES,HOGAN LOVELLS INTERNATIONAL LLP,457931,18445.77,GB123371543
BEIS,Met Office,2021-07-07,13 MISCELLANEOUS,SCIENCE,University Of Reading,457933,333.33,200012659
BEIS,Met Office,2021-07-07,11 SERVICES,CHIEF FINANCIAL OFFICER,ALLSTAR BUSINESS SOLUTIONS LTD,457936,2327.9,747880191
BEIS,Met Office,2021-07-07,03 STAFF COSTS T&S,CHIEF FINANCIAL OFFICER,ENTERPRISE RENT A CAR UK LTD,457939,1077.36,215557314
BEIS,Met Office,2021-07-07,06 ACCOMMODATION,CHIEF FINANCIAL OFFICER,MOUNT CHARLES GROUP LTD,457941,210.71,517116274
BEIS,Met Office,2021-07-07,11 SERVICES,PEOPLE,CIVICA UK LIMITED,457942,226,391171065
BEIS,Met Office,2021-07-07,06 ACCOMMODATION,CHIEF FINANCIAL OFFICER,Biffa Waste Services Ltd,457945,344.25,537911627
BEIS,Met Office,2021-07-07,06 ACCOMMODATION,CHIEF FINANCIAL OFFICER,BUSINESS STREAM,457966,272.21,945850885
BEIS,Met Office,2021-07-07,06 ACCOMMODATION,CHIEF FINANCIAL OFFICER,ANGLIAN WATER BUSINESS NATIONAL LTD,457967,24.29,51406002
BEIS,Met Office,2021-07-07,06 ACCOMMODATION,CHIEF FINANCIAL OFFICER,ANGLIAN WATER BUSINESS NATIONAL LTD,457968,20.88,51406002
BEIS,Met Office,2021-07-07,11 SERVICES,SERVICES,DHL INTERNATIONAL (UK) LTD,457969,62.68,751812341
BEIS,Met Office,2021-07-07,11 SERVICES,PROGRAMMES,OXFORD SAID BUSINESS SCHOOL,457983,20833.33,GB125506730
BEIS,Met Office,2021-07-07,12 INTERNATIONAL,MARKETS,REDACTIED PERSONAL DATA,10296,2515.62,-
BEIS,Met Office,2021-07-09,STOCK,SERVICES,GLOBAL INVACOM WAVEGUIDE,454265,0,807820628
BEIS,Met Office,2021-07-09,TRADE CREDITORS,SERVICES,GLOBAL INVACOM WAVEGUIDE,454265,25122.72,807820628
BEIS,Met Office,2021-07-09,11 SERVICES,SERVICES,GLOBAL INVACOM WAVEGUIDE,454265,136,807820628
BEIS,Met Office,2021-07-09,STOCK,SERVICES,GLOBAL INVACOM WAVEGUIDE,455484,0,807820628
BEIS,Met Office,2021-07-09,TRADE CREDITORS,SERVICES,GLOBAL INVACOM WAVEGUIDE,455484,3977.76,807820628
BEIS,Met Office,2021-07-09,04 CONTRACTORS,MARKETS,SOLOS CONSULTANTS LTD,456505,7886.8,812035476
BEIS,Met Office,2021-07-09,11 SERVICES,SCIENCE,University Of Leeds,457054,12000,613451470
BEIS,Met Office,2021-07-09,11 SERVICES,TECHNOLOGY AND CIO,BAE SYSTEMS APPLIED INTELLIGENCE LIMITED,457380,7920,GB641407169
BEIS,Met Office,2021-07-09,11 SERVICES,TECHNOLOGY AND CIO,BAE SYSTEMS APPLIED INTELLIGENCE LIMITED,457478,10318,GB641407169
BEIS,Met Office,2021-07-09,11 SERVICES,TECHNOLOGY AND CIO,BAE SYSTEMS APPLIED INTELLIGENCE LIMITED,457480,5940,GB641407169
BEIS,Met Office,2021-07-09,11 SERVICES,TECHNOLOGY AND CIO,BAE SYSTEMS APPLIED INTELLIGENCE LIMITED,457534,8550,GB641407169
BEIS,Met Office,2021-07-09,11 SERVICES,TECHNOLOGY AND CIO,BAE SYSTEMS APPLIED INTELLIGENCE LIMITED,457537,11880,GB641407169
BEIS,Met Office,2021-07-09,11 SERVICES,TECHNOLOGY AND CIO,BAE SYSTEMS APPLIED INTELLIGENCE LIMITED,457538,10230,GB641407169
BEIS,Met Office,2021-07-09,11 SERVICES,TECHNOLOGY AND CIO,BAE SYSTEMS APPLIED INTELLIGENCE LIMITED,457541,17085.68,GB641407169
BEIS,Met Office,2021-07-09,11 SERVICES,TECHNOLOGY AND CIO,BAE SYSTEMS APPLIED INTELLIGENCE LIMITED,457566,8115.6,GB641407169
BEIS,Met Office,2021-07-09,11 SERVICES,TECHNOLOGY AND CIO,BAE SYSTEMS APPLIED INTELLIGENCE LIMITED,457568,10176.03,GB641407169
BEIS,Met Office,2021-07-09,11 SERVICES,TECHNOLOGY AND CIO,BAE SYSTEMS APPLIED INTELLIGENCE LIMITED,457601,10318,GB641407169
BEIS,Met Office,2021-07-09,STOCK,SERVICES,Campbell Scientific Ltd,457640,0,428453933
BEIS,Met Office,2021-07-09,STOCK,SERVICES,Campbell Scientific Ltd,457640,0,428453933
BEIS,Met Office,2021-07-09,TRADE CREDITORS,SERVICES,Campbell Scientific Ltd,457640,2722.5,428453933
BEIS,Met Office,2021-07-09,TRADE CREDITORS,SERVICES,Campbell Scientific Ltd,457640,6675,428453933
BEIS,Met Office,2021-07-09,11 SERVICES,SERVICES,Campbell Scientific Ltd,457640,48,428453933
BEIS,Met Office,2021-07-09,04 CONTRACTORS,CHIEF FINANCIAL OFFICER,JOBSEEKERS RECRUITMENT SERVICES LTD,457734,346.56,130 1297 14
BEIS,Met Office,2021-07-09,STOCK,SERVICES,BLACK BOX NETWORK SERVICES (UK) LTD,457735,0,GB834864303
BEIS,Met Office,2021-07-09,STOCK,SERVICES,BLACK BOX NETWORK SERVICES (UK) LTD,457735,0,GB834864303
BEIS,Met Office,2021-07-09,TRADE CREDITORS,SERVICES,BLACK BOX NETWORK SERVICES (UK) LTD,457735,5762.4,GB834864303
BEIS,Met Office,2021-07-09,TRADE CREDITORS,SERVICES,BLACK BOX NETWORK SERVICES (UK) LTD,457735,3586.8,GB834864303
BEIS,Met Office,2021-07-09,11 SERVICES,SERVICES,BLACK BOX NETWORK SERVICES (UK) LTD,457735,12.5,GB834864303
BEIS,Met Office,2021-07-09,10 EQUIPMENT MAINTENANCE,SERVICES,Campbell Scientific Ltd,457781,131.27,428453933
BEIS,Met Office,2021-07-09,11 SERVICES,SERVICES,Campbell Scientific Ltd,457781,17,428453933
BEIS,Met Office,2021-07-09,03 STAFF COSTS T&S,SERVICES,CHARLIE'S TRAVEL LTD,457898,5,783848277
BEIS,Met Office,2021-07-09,03 STAFF COSTS T&S,SERVICES,CHARLIE'S TRAVEL LTD,457898,127.2,783848277
BEIS,Met Office,2021-07-09,03 STAFF COSTS T&S,SERVICES,CHARLIE'S TRAVEL LTD,457898,1064.13,783848277
BEIS,Met Office,2021-07-09,03 STAFF COSTS T&S,SERVICES,CHARLIE'S TRAVEL LTD,457898,702,783848277
BEIS,Met Office,2021-07-09,08 SOFTWARE LICENCES,TECHNOLOGY AND CIO,Ibm United Kingdom Ltd,457906,8739.7,107328000
BEIS,Met Office,2021-07-09,11 SERVICES,TECHNOLOGY AND CIO,RISUAL LIMITED,457920,1700,864480893
BEIS,Met Office,2021-07-09,07 EQUIPMENT,SERVICES,GROOVE ASSOCIATES LTD,457934,18,108381578
BEIS,Met Office,2021-07-09,07 EQUIPMENT,SERVICES,GROOVE ASSOCIATES LTD,457934,1861.7,108381578
BEIS,Met Office,2021-07-09,07 EQUIPMENT,SERVICES,GROOVE ASSOCIATES LTD,457934,1115.6,108381578
BEIS,Met Office,2021-07-09,11 SERVICES,PROGRAMMES,UK CENTRE FOR ECOLOGY & HYDROLOGY (UKCEH),457935,109691.28,336940192
BEIS,Met Office,2021-07-09,11 SERVICES,PEOPLE,CIVICA UK LTD,457943,113,601293183
BEIS,Met Office,2021-07-09,11 SERVICES,MARKETS,BEIS,457984,502860,888825550
BEIS,Met Office,2021-07-09,PLANT AND EQUIPMENT,CHIEF FINANCIAL OFFICER,Capita Property & Infrastructure Ltd,457985,12013,618184140
BEIS,Met Office,2021-07-09,11 SERVICES,PEOPLE,EDENRED I&M (IRS VOUCHERS),457987,10934.4,649 503 520
BEIS,Met Office,2021-07-09,06 ACCOMMODATION,MARKETS,Royal National Lifeboat Institution,457989,12000,-
BEIS,Met Office,2021-07-09,06 ACCOMMODATION,MARKETS,Royal National Lifeboat Institution,457989,180,-
BEIS,Met Office,2021-07-09,06 ACCOMMODATION,CHIEF FINANCIAL OFFICER,University Of Oxford,458031,3400,125506730
BEIS,Met Office,2021-07-09,11 SERVICES,TECHNOLOGY AND CIO,AKAMAI TECHNOLOGIES LTD,458034,4918.08,745091237
BEIS,Met Office,2021-07-09,11 SERVICES,TECHNOLOGY AND CIO,AKAMAI TECHNOLOGIES LTD,458034,25819.95,745091237
BEIS,Met Office,2021-07-09,10 EQUIPMENT MAINTENANCE,SERVICES,OVARRO TS LTD,458045,17364.75,648280518
BEIS,Met Office,2021-07-09,08 SOFTWARE LICENCES,SERVICES,NEW SIGNATURE UK LTD,458050,29931.75,187113309
BEIS,Met Office,2021-07-09,11 SERVICES,CHIEF FINANCIAL OFFICER,MAWASEM LTD,458052,39716.24,197694731
BEIS,Met Office,2021-07-09,11 SERVICES,PROGRAMMES,IAME LTD,458053,6425,140304468
BEIS,Met Office,2021-07-09,12 INTERNATIONAL,MARKETS,MYACORN LTD,458055,50000,-
BEIS,Met Office,2021-07-09,FIXTURE & FITTINGS,CHIEF FINANCIAL OFFICER,XUPER,458063,225,316677090
BEIS,Met Office,2021-07-09,13 MISCELLANEOUS,SCIENCE,University Of Reading,458067,333.33,200012659
BEIS,Met Office,2021-07-09,11 SERVICES,MARKETS,ENVIRONMENT ANALYST LTD,458073,850,GB106339531
BEIS,Met Office,2021-07-09,13 MISCELLANEOUS,CHIEF FINANCIAL OFFICER,ARTHUR J. GALLAGHER INSURANCE BROKERS LIMITED,458075,43105.9,GB484746209
BEIS,Met Office,2021-07-09,13 MISCELLANEOUS,CHIEF FINANCIAL OFFICER,ARTHUR J. GALLAGHER INSURANCE BROKERS LIMITED,458076,157122.78,GB484746209
BEIS,Met Office,2021-07-09,13 MISCELLANEOUS,CHIEF FINANCIAL OFFICER,ARTHUR J. GALLAGHER INSURANCE BROKERS LIMITED,458077,1051.72,GB484746209
BEIS,Met Office,2021-07-09,13 MISCELLANEOUS,CHIEF FINANCIAL OFFICER,ARTHUR J. GALLAGHER INSURANCE BROKERS LIMITED,458078,20363.64,GB484746209
BEIS,Met Office,2021-07-09,13 MISCELLANEOUS,CHIEF FINANCIAL OFFICER,ARTHUR J. GALLAGHER INSURANCE BROKERS LIMITED,458079,92756.83,GB484746209
BEIS,Met Office,2021-07-09,13 MISCELLANEOUS,CHIEF FINANCIAL OFFICER,ARTHUR J. GALLAGHER INSURANCE BROKERS LIMITED,458080,28537.6,GB484746209
BEIS,Met Office,2021-07-09,13 MISCELLANEOUS,CHIEF FINANCIAL OFFICER,ARTHUR J. GALLAGHER INSURANCE BROKERS LIMITED,458081,11956,GB484746209
BEIS,Met Office,2021-07-09,13 MISCELLANEOUS,CHIEF FINANCIAL OFFICER,ARTHUR J. GALLAGHER INSURANCE BROKERS LIMITED,458082,1232.9,GB484746209
BEIS,Met Office,2021-07-09,11 SERVICES,SERVICES,HITACHI CAPITAL VEHICLE SOLUTIONS,458090,9427.44,GB 823 8248 22
BEIS,Met Office,2021-07-09,11 SERVICES,PEOPLE,REDACTIED PERSONAL DATA,458037,3345,143043312
BEIS,Met Office,2021-07-12,11 SERVICES,MARKETS,NCC SERVICES  LIMITED,457397,1530,732334556
BEIS,Met Office,2021-07-12,05 CONSULTANTS,PROGRAMMES,FLYFORM LTD,457815,46320,237333808
BEIS,Met Office,2021-07-12,06 ACCOMMODATION,MARKETS,HIGHLANDS & ISLANDS AIRPORTS LTD.,457821,4.89,945667772
BEIS,Met Office,2021-07-12,06 ACCOMMODATION,MARKETS,HIGHLANDS & ISLANDS AIRPORTS LTD.,457821,97.89,945667772
BEIS,Met Office,2021-07-12,11 SERVICES,PEOPLE,HAWK INCENTIVES LTD,457944,2745.75,238839422
BEIS,Met Office,2021-07-12,04 CONTRACTORS,PEOPLE,HAYS SPECIALIST RECRUITMENT LTD,457988,498,773695871
BEIS,Met Office,2021-07-12,11 SERVICES,TECHNOLOGY AND CIO,BAE SYSTEMS APPLIED INTELLIGENCE LIMITED,457991,7574.56,GB641407169
BEIS,Met Office,2021-07-12,04 CONTRACTORS,PEOPLE,JOBSEEKERS RECRUITMENT SERVICES LTD,457993,538.08,130 1297 14
BEIS,Met Office,2021-07-12,04 CONTRACTORS,OFFICE OF THE CEO,JOBSEEKERS RECRUITMENT SERVICES LTD,457994,638.4,130 1297 14
BEIS,Met Office,2021-07-12,04 CONTRACTORS,MARKETS,JOBSEEKERS RECRUITMENT SERVICES LTD,457995,574.56,130 1297 14
BEIS,Met Office,2021-07-12,04 CONTRACTORS,CHIEF FINANCIAL OFFICER,JOBSEEKERS RECRUITMENT SERVICES LTD,457996,629.28,130 1297 14
BEIS,Met Office,2021-07-12,04 CONTRACTORS,CHIEF FINANCIAL OFFICER,JOBSEEKERS RECRUITMENT SERVICES LTD,457997,273.6,130 1297 14
BEIS,Met Office,2021-07-12,04 CONTRACTORS,MARKETS,JOBSEEKERS RECRUITMENT SERVICES LTD,457998,674.88,130 1297 14
BEIS,Met Office,2021-07-12,04 CONTRACTORS,MARKETS,HAYS SPECIALIST RECRUITMENT LTD,458038,371.7,773695871
BEIS,Met Office,2021-07-12,04 CONTRACTORS,PROGRAMMES,HAYS SPECIALIST RECRUITMENT LTD,458039,371.7,773695871
BEIS,Met Office,2021-07-12,04 CONTRACTORS,PEOPLE,HAYS SPECIALIST RECRUITMENT LTD,458040,498,773695871
BEIS,Met Office,2021-07-12,04 CONTRACTORS,PROGRAMMES,HAYS SPECIALIST RECRUITMENT LTD,458041,371.7,773695871
BEIS,Met Office,2021-07-12,04 CONTRACTORS,PEOPLE,HAYS SPECIALIST RECRUITMENT LTD,458046,498,773695871
BEIS,Met Office,2021-07-12,06 ACCOMMODATION,CHIEF FINANCIAL OFFICER,RIVER RIDGE,458047,108.98,176286083
BEIS,Met Office,2021-07-12,11 SERVICES,MARKETS,TIVIAN LIMITED,458048,10182.47,GB 864 1783 01
BEIS,Met Office,2021-07-12,06 ACCOMMODATION,CHIEF FINANCIAL OFFICER,BUSINESS SUPPORT CENTRE LTD,458051,27.28,927365208
BEIS,Met Office,2021-07-12,06 ACCOMMODATION,PROGRAMMES,CBRE MANAGED SERVICES LTD,458057,919.73,853936883
BEIS,Met Office,2021-07-12,06 ACCOMMODATION,PROGRAMMES,CBRE MANAGED SERVICES LTD,458057,14844.95,853936883
BEIS,Met Office,2021-07-12,04 CONTRACTORS,PEOPLE,MATRIX SCM LIMITED,458058,224837,249 5734 68
BEIS,Met Office,2021-07-12,06 ACCOMMODATION,CHIEF FINANCIAL OFFICER,ST MODWEN VENTURES LTD,458061,17.46,975081008
BEIS,Met Office,2021-07-12,04 CONTRACTORS,TECHNOLOGY AND CIO,HAYS SPECIALIST RECRUITMENT LTD,458062,567.58,773695871
BEIS,Met Office,2021-07-12,11 SERVICES,CHIEF FINANCIAL OFFICER,EXPONENTIAL-E,458064,1618.27,GB798572653
BEIS,Met Office,2021-07-12,11 SERVICES,CHIEF FINANCIAL OFFICER,ANVIL MOBILE LIMITED,458066,370.95,981686175
BEIS,Met Office,2021-07-12,04 CONTRACTORS,TECHNOLOGY AND CIO,FDM GROUP LIMITED,458083,5589,583540529
BEIS,Met Office,2021-07-12,04 CONTRACTORS,TECHNOLOGY AND CIO,FDM GROUP LIMITED,458084,2190,583540529
BEIS,Met Office,2021-07-12,04 CONTRACTORS,TECHNOLOGY AND CIO,FDM GROUP LIMITED,458085,2160,583540529
BEIS,Met Office,2021-07-12,04 CONTRACTORS,TECHNOLOGY AND CIO,FDM GROUP LIMITED,458086,3900,583540529
BEIS,Met Office,2021-07-12,04 CONTRACTORS,TECHNOLOGY AND CIO,FDM GROUP LIMITED,458087,3780,583540529
BEIS,Met Office,2021-07-12,04 CONTRACTORS,TECHNOLOGY AND CIO,FDM GROUP LIMITED,458088,6300,583540529
BEIS,Met Office,2021-07-12,04 CONTRACTORS,TECHNOLOGY AND CIO,FDM GROUP LIMITED,458089,5130,583540529
BEIS,Met Office,2021-07-12,06 ACCOMMODATION,CHIEF FINANCIAL OFFICER,ANGLIAN WATER BUSINESS NATIONAL LTD,458091,56.06,51406002
BEIS,Met Office,2021-07-12,06 ACCOMMODATION,CHIEF FINANCIAL OFFICER,ANGLIAN WATER BUSINESS NATIONAL LTD,458092,30.41,51406002
BEIS,Met Office,2021-07-12,06 ACCOMMODATION,CHIEF FINANCIAL OFFICER,South West Water Ltd,458093,1996.09,236873674
BEIS,Met Office,2021-07-12,06 ACCOMMODATION,CHIEF FINANCIAL OFFICER,ABOVE THE REST COMMERCIAL CLEANING LTD,458095,565,166969348
BEIS,Met Office,2021-07-12,06 ACCOMMODATION,CHIEF FINANCIAL OFFICER,Severn Trent Water Ltd,458096,20.61,486985565
BEIS,Met Office,2021-07-12,11 SERVICES,CHIEF FINANCIAL OFFICER,JERSEY TELECOM,458097,1284.32,NOTVATREG
BEIS,Met Office,2021-07-12,11 SERVICES,CHIEF FINANCIAL OFFICER,ADAM PHONES LTD,458133,171,538877093
BEIS,Met Office,2021-07-12,06 ACCOMMODATION,CHIEF FINANCIAL OFFICER,LHR BUSINESS SUPPORT CENTRE LTD,458136,3062.92,927365404
BEIS,Met Office,2021-07-12,11 SERVICES,CHIEF FINANCIAL OFFICER,SURE SOUTH ATLANTIC LTD,458138,4743,-
BEIS,Met Office,2021-07-12,11 SERVICES,CHIEF FINANCIAL OFFICER,SURE SOUTH ATLANTIC LTD,458139,770,-
BEIS,Met Office,2021-07-12,04 CONTRACTORS,MARKETS,HAYS SPECIALIST RECRUITMENT LTD,458140,284.97,773695871
BEIS,Met Office,2021-07-12,11 SERVICES,CHIEF FINANCIAL OFFICER,TELEFONICA O2 UK LIMITED,458143,7253.25,778603785
BEIS,Met Office,2021-07-12,11 SERVICES,CHIEF FINANCIAL OFFICER,GIBRALTAR NYNEX COMMUNICATIONS LTD,458144,702.02,NOVAT
BEIS,Met Office,2021-07-12,11 SERVICES,SERVICES,REDACTIED PERSONAL DATA,457901,1200,262883631
BEIS,Met Office,2021-07-14,11 SERVICES,SERVICES,METOCEAN TELEMATICS LTD,10197,434.4,-
BEIS,Met Office,2021-07-14,11 SERVICES,SERVICES,METOCEAN TELEMATICS LTD,10238,432.45,-
BEIS,Met Office,2021-07-14,11 SERVICES,SERVICES,METOCEAN TELEMATICS LTD,10245,416.96,-
BEIS,Met Office,2021-07-14,11 SERVICES,SERVICES,NSSL GLOBAL LTD,10285,50.69,725151948
BEIS,Met Office,2021-07-14,STOCK,SERVICES,SCIENCE PUMP CORPORATION,10297,0,NOVAT
BEIS,Met Office,2021-07-14,TRADE CREDITORS,SERVICES,SCIENCE PUMP CORPORATION,10297,12974.28,NOVAT
BEIS,Met Office,2021-07-14,REVENUE,SCIENCE,METEO-FRANCE AGENCE COMPTABLE SEC D2C,22677,23664.03,FR03180060030
BEIS,Met Office,2021-07-14,11 SERVICES,SCIENCE,Knmi,22678,25729.54,821693992B01
BEIS,Met Office,2021-07-14,REVENUE,SCIENCE,ECMWF,22683,28774.2,NOTVATREG
BEIS,Met Office,2021-07-14,11 SERVICES,MARKETS,WORLD METEOROLOGICAL ORGANIZATION,456959,-129718,-
BEIS,Met Office,2021-07-14,11 SERVICES,MARKETS,WORLD METEOROLOGICAL ORGANIZATION,456960,-194192,-
BEIS,Met Office,2021-07-14,11 SERVICES,MARKETS,WORLD METEOROLOGICAL ORGANIZATION,456962,-91003,-
BEIS,Met Office,2021-07-14,11 SERVICES,PROGRAMMES,GAMMA TELECOM LTD,457619,3229.53,823820344
BEIS,Met Office,2021-07-14,11 SERVICES,PROGRAMMES,GAMMA TELECOM LTD,457619,300.57,823820344
BEIS,Met Office,2021-07-14,11 SERVICES,PROGRAMMES,GAMMA TELECOM LTD,457619,3520.65,823820344
BEIS,Met Office,2021-07-14,11 SERVICES,PROGRAMMES,GAMMA TELECOM LTD,457619,99.17,823820344
BEIS,Met Office,2021-07-14,11 SERVICES,MARKETS,FCDO,457711,3157.58,888813560
BEIS,Met Office,2021-07-14,11 SERVICES,CHIEF FINANCIAL OFFICER,MITIE SECURITY LTD,457896,1311.72,416706654
BEIS,Met Office,2021-07-14,11 SERVICES,MARKETS,SYNTAGMA TRANSLATIONS,458036,378.09,-
BEIS,Met Office,2021-07-14,11 SERVICES,MARKETS,Health & Safety Laboratory,458056,15000,888810177
BEIS,Met Office,2021-07-14,11 SERVICES,CHIEF FINANCIAL OFFICER,Reuters Ltd,458060,1965,397000555
BEIS,Met Office,2021-07-14,11 SERVICES,CHIEF FINANCIAL OFFICER,ADT FIRE AND SECURITY PLC,458094,175.64,413633086
BEIS,Met Office,2021-07-14,06 ACCOMMODATION,CHIEF FINANCIAL OFFICER,CORONA ENERGY LTD,458098,10612.15,577704800
BEIS,Met Office,2021-07-14,06 ACCOMMODATION,CHIEF FINANCIAL OFFICER,CORONA ENERGY LTD,458099,419.78,577704800
BEIS,Met Office,2021-07-14,11 SERVICES,MARKETS,SPOKE (INTERACTIVE) LTD,458135,700,840156451
BEIS,Met Office,2021-07-14,07 EQUIPMENT,TECHNOLOGY AND CIO,COMPUTACENTER (UK) LTD,458137,132.3,490334648
BEIS,Met Office,2021-07-14,11 SERVICES,CHIEF FINANCIAL OFFICER,GAMMA TELECOM LTD,458141,97.92,823820344
BEIS,Met Office,2021-07-14,11 SERVICES,CHIEF FINANCIAL OFFICER,GAMMA TELECOM LTD,458141,28227.28,823820344
BEIS,Met Office,2021-07-14,11 SERVICES,PROGRAMMES,GAMMA TELECOM LTD,458142,3265.38,823820344
BEIS,Met Office,2021-07-14,11 SERVICES,PROGRAMMES,GAMMA TELECOM LTD,458142,54,823820344
BEIS,Met Office,2021-07-14,11 SERVICES,PROGRAMMES,GAMMA TELECOM LTD,458142,38.14,823820344
BEIS,Met Office,2021-07-14,11 SERVICES,MARKETS,SOCIAL SENSING LTD,458146,5768,-
BEIS,Met Office,2021-07-14,11 SERVICES,SERVICES,MERKLE UK THREE LTD T/A MERKLE PERISCOPIX,458190,8315,843316243
BEIS,Met Office,2021-07-14,04 CONTRACTORS,TECHNOLOGY AND CIO,FDM GROUP LIMITED,458191,810,583540529
BEIS,Met Office,2021-07-14,03 STAFF COSTS T&S,SERVICES,AIRPORT CAR RENTALS LTD,458192,320,-
BEIS,Met Office,2021-07-14,11 SERVICES,CHIEF FINANCIAL OFFICER,LONDON UNIVERSITIES PURCHASING CONSORTIUM,458194,4725,-
BEIS,Met Office,2021-07-14,04 CONTRACTORS,TECHNOLOGY AND CIO,GCS IT RECRUITMENT SPECIALISTS LTD,458197,15000,896156575
BEIS,Met Office,2021-07-14,11 SERVICES,CHIEF FINANCIAL OFFICER,SURE SOUTH ATLANTIC LTD (ST HELENA),458198,2207.66,30005
BEIS,Met Office,2021-07-14,11 SERVICES,MARKETS,VAISALA LTD,458199,1250,336100011
BEIS,Met Office,2021-07-14,11 SERVICES,SERVICES,CLOUDREACH EUROPE LIMITED,458201,7300,978187168
BEIS,Met Office,2021-07-14,07 EQUIPMENT,TECHNOLOGY AND CIO,NEXUS OPEN SYSTEMS LTD,458204,10492.62,723221673
BEIS,Met Office,2021-07-14,11 SERVICES,PEOPLE,PSYCHOLOGICA,458205,300,143530636
BEIS,Met Office,2021-07-14,11 SERVICES,SERVICES,LB TRAINING LTD,458206,395,-
BEIS,Met Office,2021-07-14,11 SERVICES,PEOPLE,LB TRAINING LTD,458208,650,-
BEIS,Met Office,2021-07-14,11 SERVICES,TECHNOLOGY AND CIO,RISUAL LIMITED,458209,4250,864480893
BEIS,Met Office,2021-07-14,06 ACCOMMODATION,CHIEF FINANCIAL OFFICER,SAFESTORE LTD,458210,2815.28,722887607
BEIS,Met Office,2021-07-14,03 STAFF COSTS T&S,CHIEF FINANCIAL OFFICER,ENTERPRISE RENT A CAR UK LTD,458211,737.54,215557314
BEIS,Met Office,2021-07-14,11 SERVICES,CHIEF FINANCIAL OFFICER,SURE SOUTH ATLANTIC LTD,458220,1202.87,NOVATREG
BEIS,Met Office,2021-07-14,11 SERVICES,MARKETS,Cgi It Uk Limited,458223,186682.7,232615194
BEIS,Met Office,2021-07-14,04 CONTRACTORS,PEOPLE,JOBSEEKERS RECRUITMENT SERVICES LTD,458224,674.88,130 1297 14
BEIS,Met Office,2021-07-14,04 CONTRACTORS,MARKETS,JOBSEEKERS RECRUITMENT SERVICES LTD,458225,674.88,130 1297 14
BEIS,Met Office,2021-07-14,04 CONTRACTORS,OFFICE OF THE CEO,JOBSEEKERS RECRUITMENT SERVICES LTD,458226,638.4,130 1297 14
BEIS,Met Office,2021-07-14,04 CONTRACTORS,PEOPLE,JOBSEEKERS RECRUITMENT SERVICES LTD,458227,674.88,130 1297 14
BEIS,Met Office,2021-07-14,04 CONTRACTORS,CHIEF FINANCIAL OFFICER,JOBSEEKERS RECRUITMENT SERVICES LTD,458228,620.16,130 1297 14
BEIS,Met Office,2021-07-14,04 CONTRACTORS,MARKETS,JOBSEEKERS RECRUITMENT SERVICES LTD,458229,538.08,130 1297 14
BEIS,Met Office,2021-07-14,13 MISCELLANEOUS,CHIEF FINANCIAL OFFICER,POSTURITE (UK) LTD,458230,161.74,583565114
BEIS,Met Office,2021-07-14,13 MISCELLANEOUS,CHIEF FINANCIAL OFFICER,POSTURITE (UK) LTD,458231,516.4,583565114
BEIS,Met Office,2021-07-14,06 ACCOMMODATION,CHIEF FINANCIAL OFFICER,South West Water Ltd,458247,385.35,236873674
BEIS,Met Office,2021-07-14,11 SERVICES,PEOPLE,SUSAN HASWELL T/A BIG RESULTS,458264,395,NOT REGISTERED
BEIS,Met Office,2021-07-14,03 STAFF COSTS T&S,SERVICES,CARTUS LTD,458193,200,768489458
BEIS,Met Office,2021-07-14,03 STAFF COSTS T&S,SERVICES,CARTUS LTD,458195,200,768489458
BEIS,Met Office,2021-07-14,03 STAFF COSTS T&S,SERVICES,CARTUS LTD,458196,137,768489458
BEIS,Met Office,2021-07-16,11 SERVICES,CHIEF FINANCIAL OFFICER,British Red Cross Society,457196,541,706926227
BEIS,Met Office,2021-07-16,11 SERVICES,MARKETS,ACCELERATION EMARKETING,458065,3870.3,848940776
BEIS,Met Office,2021-07-16,11 SERVICES,MARKETS,SOFTWIRE TECHNOLOGY LIMITED,458233,48813,752 1253 57
BEIS,Met Office,2021-07-16,06 ACCOMMODATION,CHIEF FINANCIAL OFFICER,EDF ENERGY CUSTOMERS PLC,458249,4660.32,523041202
BEIS,Met Office,2021-07-16,06 ACCOMMODATION,CHIEF FINANCIAL OFFICER,EDF ENERGY CUSTOMERS PLC,458250,368756.57,523041202
BEIS,Met Office,2021-07-16,11 SERVICES,PROGRAMMES,BJSS LIMITED,458262,10000,613295452
BEIS,Met Office,2021-07-16,03 STAFF COSTS T&S,SERVICES,FALKLAND ISLAND COMPANY LTD,458266,700,N/A
BEIS,Met Office,2021-07-16,03 STAFF COSTS T&S,SERVICES,FALKLAND ISLAND COMPANY LTD,458268,700,N/A
BEIS,Met Office,2021-07-16,03 STAFF COSTS T&S,SERVICES,FALKLAND ISLAND COMPANY LTD,458269,700,N/A
BEIS,Met Office,2021-07-16,04 CONTRACTORS,TECHNOLOGY AND CIO,HAYS SPECIALIST RECRUITMENT LTD,458316,567.58,773695871
BEIS,Met Office,2021-07-16,11 SERVICES,SERVICES,SOFTWIRE TECHNOLOGY LIMITED,458320,2520,752 1253 57
BEIS,Met Office,2021-07-16,04 CONTRACTORS,PEOPLE,MATRIX SCM LIMITED,458321,180423.08,249 5734 68
BEIS,Met Office,2021-07-16,06 ACCOMMODATION,CHIEF FINANCIAL OFFICER,National Oceanography Centre,458322,27015.16,GB 338 5487 64
BEIS,Met Office,2021-07-19,11 SERVICES,SCIENCE,University Of Leeds,457812,14355,613451470
BEIS,Met Office,2021-07-19,07 EQUIPMENT,SERVICES,COMPUTACENTER (UK) LTD,458261,74.6,490334648
BEIS,Met Office,2021-07-19,06 ACCOMMODATION,CHIEF FINANCIAL OFFICER,South West Water Ltd,458309,4072,236873674
BEIS,Met Office,2021-07-19,06 ACCOMMODATION,CHIEF FINANCIAL OFFICER,ST MODWEN VENTURES LTD,458323,106.56,975081008
BEIS,Met Office,2021-07-19,06 ACCOMMODATION,CHIEF FINANCIAL OFFICER,ST MODWEN VENTURES LTD,458324,63.6,975081008
BEIS,Met Office,2021-07-19,11 SERVICES,PROGRAMMES,University Of Cambridge,458338,66965.27,214222124
BEIS,Met Office,2021-07-19,11 SERVICES,PROGRAMMES,CAMBRIDGE ENVIRONMENTAL RESEARCH CONSULTANTS,458341,88828,GB424750755
BEIS,Met Office,2021-07-19,06 ACCOMMODATION,CHIEF FINANCIAL OFFICER,Thames Water,458347,1750,-
BEIS,Met Office,2021-07-19,11 SERVICES,CHIEF FINANCIAL OFFICER,REDACTIED PERSONAL DATA,458348,510,729159704
BEIS,Met Office,2021-07-20,11 SERVICES,MARKETS,DBS FINANCE RECEIPTS CTS,458344,13566.4,888805068
BEIS,Met Office,2021-07-21,11 SERVICES,SERVICES,NSSL GLOBAL LTD,10259,49.63,725151948
BEIS,Met Office,2021-07-21,11 SERVICES,SERVICES,NSSL GLOBAL LTD,10286,50.69,725151948
BEIS,Met Office,2021-07-21,11 SERVICES,PROGRAMMES,UCAR INCOMING PAYMENTS,10294,19934.48,-
BEIS,Met Office,2021-07-21,11 SERVICES,MARKETS,"BASILIO SOZINHO CUBULA SERVI�OS, E.I.",10311,6356.83,N/A
BEIS,Met Office,2021-07-21,07 EQUIPMENT,SERVICES,VAISALA LTD,22680,42367.29,336100011
BEIS,Met Office,2021-07-21,07 EQUIPMENT,SERVICES,VAISALA LTD,22680,2854.26,336100011
BEIS,Met Office,2021-07-21,07 EQUIPMENT,SERVICES,VAISALA LTD,22680,10720.64,336100011
BEIS,Met Office,2021-07-21,07 EQUIPMENT,SERVICES,VAISALA LTD,22680,13447.97,336100011
BEIS,Met Office,2021-07-21,STOCK,SERVICES,VAISALA LTD,22681,0,336100011
BEIS,Met Office,2021-07-21,STOCK,SERVICES,VAISALA LTD,22681,0,336100011
BEIS,Met Office,2021-07-21,TRADE CREDITORS,SERVICES,VAISALA LTD,22681,12307.3,336100011
BEIS,Met Office,2021-07-21,TRADE CREDITORS,SERVICES,VAISALA LTD,22681,1723.88,336100011
BEIS,Met Office,2021-07-21,STOCK,SERVICES,FEINGERATEBAU K. FISCHER GMBH,22686,0,DE141292589
BEIS,Met Office,2021-07-21,TRADE CREDITORS,SERVICES,FEINGERATEBAU K. FISCHER GMBH,22686,578.04,DE141292589
BEIS,Met Office,2021-07-21,11 SERVICES,SERVICES,FEINGERATEBAU K. FISCHER GMBH,22686,32.86,DE141292589
BEIS,Met Office,2021-07-21,REVENUE,SCIENCE,Smhi,22687,931.86,SE202100069601
BEIS,Met Office,2021-07-21,STOCK,SERVICES,VAISALA LTD,22700,0,336100011
BEIS,Met Office,2021-07-21,TRADE CREDITORS,SERVICES,VAISALA LTD,22700,78207.79,336100011
BEIS,Met Office,2021-07-21,11 SERVICES,CHIEF FINANCIAL OFFICER,DBS FINANCE RECEIPTS CTS,22781,167.38,888805068
BEIS,Met Office,2021-07-21,11 SERVICES,PEOPLE,SKILLTEC LIMITED,456468,595,909833105
BEIS,Met Office,2021-07-21,11 SERVICES,PEOPLE,SKILLTEC LIMITED,456469,595,909833105
BEIS,Met Office,2021-07-21,11 SERVICES,TECHNOLOGY AND CIO,BAE SYSTEMS APPLIED INTELLIGENCE LIMITED,457477,10766.25,GB641407169
BEIS,Met Office,2021-07-21,11 SERVICES,TECHNOLOGY AND CIO,BAE SYSTEMS APPLIED INTELLIGENCE LIMITED,457567,8521.38,GB641407169
BEIS,Met Office,2021-07-21,06 ACCOMMODATION,CHIEF FINANCIAL OFFICER,JAMES & MARCIA BENJAMIN,457982,648,-
BEIS,Met Office,2021-07-21,11 SERVICES,TECHNOLOGY AND CIO,BAE SYSTEMS APPLIED INTELLIGENCE LIMITED,457992,9130.05,GB641407169
BEIS,Met Office,2021-07-21,11 SERVICES,TECHNOLOGY AND CIO,BAE SYSTEMS APPLIED INTELLIGENCE LIMITED,458044,2814,GB641407169
BEIS,Met Office,2021-07-21,11 SERVICES,TECHNOLOGY AND CIO,BAE SYSTEMS APPLIED INTELLIGENCE LIMITED,458257,12540,GB641407169
BEIS,Met Office,2021-07-21,11 SERVICES,TECHNOLOGY AND CIO,BAE SYSTEMS APPLIED INTELLIGENCE LIMITED,458258,9738.72,GB641407169
BEIS,Met Office,2021-07-21,11 SERVICES,TECHNOLOGY AND CIO,BAE SYSTEMS APPLIED INTELLIGENCE LIMITED,458259,14190,GB641407169
BEIS,Met Office,2021-07-21,11 SERVICES,PEOPLE,THE MYERS BRIGGS COMPANY LTD,458314,2756.25,490808231
BEIS,Met Office,2021-07-21,11 SERVICES,TECHNOLOGY AND CIO,BAE SYSTEMS APPLIED INTELLIGENCE LIMITED,458317,14025,GB641407169
BEIS,Met Office,2021-07-21,11 SERVICES,TECHNOLOGY AND CIO,BAE SYSTEMS APPLIED INTELLIGENCE LIMITED,458319,10230,GB641407169
BEIS,Met Office,2021-07-21,11 SERVICES,PEOPLE,OLD FROG LTD,458339,1880,642591532
BEIS,Met Office,2021-07-21,11 SERVICES,CHIEF FINANCIAL OFFICER,BT GLOBAL SERVICES,458340,11213.28,245719348
BEIS,Met Office,2021-07-21,06 ACCOMMODATION,CHIEF FINANCIAL OFFICER,UK CENTRE FOR ECOLOGY & HYDROLOGY (UKCEH),458342,2772.66,336940192
BEIS,Met Office,2021-07-21,11 SERVICES,CHIEF FINANCIAL OFFICER,National Audit Office,458343,38000,417632457
BEIS,Met Office,2021-07-21,11 SERVICES,CHIEF FINANCIAL OFFICER,ALLSTAR BUSINESS SOLUTIONS LTD,458345,2750.79,747880191
BEIS,Met Office,2021-07-21,06 ACCOMMODATION,CHIEF FINANCIAL OFFICER,MORAY COUNCIL,458346,2925,663755506
BEIS,Met Office,2021-07-21,06 ACCOMMODATION,CHIEF FINANCIAL OFFICER,BIDVEST NOONAN UK LTD,458349,1,GB847176988
BEIS,Met Office,2021-07-21,06 ACCOMMODATION,CHIEF FINANCIAL OFFICER,BIDVEST NOONAN UK LTD,458349,394.68,GB847176988
BEIS,Met Office,2021-07-21,06 ACCOMMODATION,CHIEF FINANCIAL OFFICER,BIDVEST NOONAN UK LTD,458350,889.6,GB847176988
BEIS,Met Office,2021-07-21,06 ACCOMMODATION,CHIEF FINANCIAL OFFICER,BIDVEST NOONAN UK LTD,458350,1,GB847176988
BEIS,Met Office,2021-07-21,03 STAFF COSTS T&S,CHIEF FINANCIAL OFFICER,ENTERPRISE RENT A CAR UK LTD,458367,1802.44,215557314
BEIS,Met Office,2021-07-21,13 MISCELLANEOUS,SCIENCE,University Of Reading,458371,333.33,200012659
BEIS,Met Office,2021-07-21,11 SERVICES,TECHNOLOGY AND CIO,LRQA LTD,458372,3880,821176647
BEIS,Met Office,2021-07-21,08 SOFTWARE LICENCES,TECHNOLOGY AND CIO,COMPUTACENTER (UK) LTD,458376,4498.61,490334648
BEIS,Met Office,2021-07-21,04 CONTRACTORS,PEOPLE,HAYS SPECIALIST RECRUITMENT LTD,458383,249,773695871
BEIS,Met Office,2021-07-21,11 SERVICES,MARKETS,AIRTO LTD,458384,6595,448873792
BEIS,Met Office,2021-07-22,TRADE CREDITORS,OTHER,NATWEST COMMERCIAL CARDS DIVISION,458386,114152.28,N/A
BEIS,Met Office,2021-07-22,07 EQUIPMENT,CHIEF FINANCIAL OFFICER,NATWEST COMMERCIAL CARDS DIVISION,458387,9071.85,N/A
BEIS,Met Office,2021-07-23,04 CONTRACTORS,PEOPLE,HAYS SPECIALIST RECRUITMENT LTD,456318,5.54,773695871
BEIS,Met Office,2021-07-23,11 SERVICES,PEOPLE,A Cloud Guru Ltd,457599,47280,GB230465925
BEIS,Met Office,2021-07-23,11 SERVICES,MARKETS,ROWE IT LTD,457924,6600,924964394
BEIS,Met Office,2021-07-23,STOCK,SERVICES,EDMUNDSON ELECTRICAL LTD,458200,0,338246841
BEIS,Met Office,2021-07-23,TRADE CREDITORS,SERVICES,EDMUNDSON ELECTRICAL LTD,458200,3363.4,338246841
BEIS,Met Office,2021-07-23,11 SERVICES,TECHNOLOGY AND CIO,CLOUDREACH EUROPE LIMITED,458202,5150,978187168
BEIS,Met Office,2021-07-23,11 SERVICES,PROGRAMMES,KORN FERRY HAY GROUP LTD,458222,32700,GB 539135439
BEIS,Met Office,2021-07-23,11 SERVICES,TECHNOLOGY AND CIO,BAE SYSTEMS APPLIED INTELLIGENCE LIMITED,458240,9900,GB641407169
BEIS,Met Office,2021-07-23,11 SERVICES,TECHNOLOGY AND CIO,BAE SYSTEMS APPLIED INTELLIGENCE LIMITED,458241,11902.88,GB641407169
BEIS,Met Office,2021-07-23,11 SERVICES,TECHNOLOGY AND CIO,BAE SYSTEMS APPLIED INTELLIGENCE LIMITED,458242,15946,GB641407169
BEIS,Met Office,2021-07-23,11 SERVICES,PEOPLE,CIVICA UK LIMITED,458248,7162.66,391171065
BEIS,Met Office,2021-07-23,11 SERVICES,MARKETS,Cgi It Uk Limited,458255,186682.7,232615194
BEIS,Met Office,2021-07-23,03 STAFF COSTS T&S,SERVICES,DBS FINANCE RECEIPTS CTS,458260,4818,888805068
BEIS,Met Office,2021-07-23,11 SERVICES,PROGRAMMES,BJSS LIMITED,458263,87237.5,613295452
BEIS,Met Office,2021-07-23,07 EQUIPMENT,TECHNOLOGY AND CIO,INSURGO MEDIA SERVICES LTD,458267,9918,979682734
BEIS,Met Office,2021-07-23,11 SERVICES,PEOPLE,A Cloud Guru Ltd,458310,-4728,GB230465925
BEIS,Met Office,2021-07-23,08 SOFTWARE LICENCES,TECHNOLOGY AND CIO,QUEST SOFTWARE INTERNATIONAL LTD,458311,4726.78,581955404
BEIS,Met Office,2021-07-23,13 MISCELLANEOUS,SERVICES,DHL GLOBAL FORWARDING (UK) LTD,458315,899.19,745260438
BEIS,Met Office,2021-07-23,06 ACCOMMODATION,CHIEF FINANCIAL OFFICER,EDF ENERGY CUSTOMERS PLC,458352,20295.53,523041202
BEIS,Met Office,2021-07-23,11 SERVICES,TECHNOLOGY AND CIO,Ibm United Kingdom Ltd,458368,6184.16,107328000
BEIS,Met Office,2021-07-23,11 SERVICES,TECHNOLOGY AND CIO,CLOUDREACH EUROPE LIMITED,458373,2019.97,978187168
BEIS,Met Office,2021-07-23,13 MISCELLANEOUS,SCIENCE,University Of Reading,458374,333.34,200012659
BEIS,Met Office,2021-07-23,13 MISCELLANEOUS,SCIENCE,University Of Reading,458377,333.33,200012659
BEIS,Met Office,2021-07-23,13 MISCELLANEOUS,SCIENCE,University Of Reading,458378,333.33,200012659
BEIS,Met Office,2021-07-23,13 MISCELLANEOUS,SCIENCE,University Of Reading,458379,333.33,200012659
BEIS,Met Office,2021-07-23,13 MISCELLANEOUS,SCIENCE,University Of Reading,458380,333.34,200012659
BEIS,Met Office,2021-07-23,11 SERVICES,CHIEF FINANCIAL OFFICER,DBS FINANCE RECEIPTS CTS,458382,195.12,888805068
BEIS,Met Office,2021-07-23,FIXTURE & FITTINGS,CHIEF FINANCIAL OFFICER,NMCN PLC,458414,3510.51,GB648191516
BEIS,Met Office,2021-07-23,FIXTURE & FITTINGS,CHIEF FINANCIAL OFFICER,NMCN PLC,458414,1828.81,GB648191516
BEIS,Met Office,2021-07-23,FIXTURE & FITTINGS,CHIEF FINANCIAL OFFICER,NMCN PLC,458414,1370.6,GB648191516
BEIS,Met Office,2021-07-23,FIXTURE & FITTINGS,CHIEF FINANCIAL OFFICER,NMCN PLC,458414,7892.58,GB648191516
BEIS,Met Office,2021-07-23,FIXTURE & FITTINGS,CHIEF FINANCIAL OFFICER,NMCN PLC,458414,6679.56,GB648191516
BEIS,Met Office,2021-07-23,FIXTURE & FITTINGS,CHIEF FINANCIAL OFFICER,NMCN PLC,458414,7504.34,GB648191516
BEIS,Met Office,2021-07-23,08 SOFTWARE LICENCES,TECHNOLOGY AND CIO,BOXXE,458415,93977.67,734245248
BEIS,Met Office,2021-07-23,06 ACCOMMODATION,CHIEF FINANCIAL OFFICER,Npl Management Ltd,458419,1100,207523388
BEIS,Met Office,2021-07-23,12 INTERNATIONAL,MARKETS,APPLIED SATELLITE TECHNOLOGY SYSTEMS LTD,458433,30.38,720108683
BEIS,Met Office,2021-07-23,11 SERVICES,PEOPLE,RIVER TRAINING AND HR,458443,750,-
BEIS,Met Office,2021-07-23,07 EQUIPMENT,TECHNOLOGY AND CIO,COMPUTACENTER (UK) LTD,458454,88.2,490334648
BEIS,Met Office,2021-07-23,07 EQUIPMENT,TECHNOLOGY AND CIO,COMPUTACENTER (UK) LTD,458455,347.3,490334648
BEIS,Met Office,2021-07-23,06 ACCOMMODATION,CHIEF FINANCIAL OFFICER,ENVIRONMENT AGENCY RECEIPTS,458463,75,662490134
BEIS,Met Office,2021-07-23,11 SERVICES,CHIEF FINANCIAL OFFICER,DBS FINANCE RECEIPTS CTS,458472,-195.12,888805068
BEIS,Met Office,2021-07-26,PAYE AND VAT,OTHER,DHL INTERNATIONAL (UK) LTD,453303,4509.19,751812341
BEIS,Met Office,2021-07-26,11 SERVICES,SERVICES,DHL INTERNATIONAL (UK) LTD,453303,112.73,751812341
BEIS,Met Office,2021-07-26,06 ACCOMMODATION,CHIEF FINANCIAL OFFICER,CALOR GAS LIMITED,456517,-23.42,207610984
BEIS,Met Office,2021-07-26,11 SERVICES,CHIEF FINANCIAL OFFICER,ADT FIRE AND SECURITY PLC,458385,545.09,413633086
BEIS,Met Office,2021-07-26,11 SERVICES,SERVICES,DHL INTERNATIONAL (UK) LTD,458393,11,751812341
BEIS,Met Office,2021-07-26,11 SERVICES,SERVICES,DHL INTERNATIONAL (UK) LTD,458394,-62.68,751812341
BEIS,Met Office,2021-07-26,11 SERVICES,PEOPLE,EDENRED - CHILDCARE VOUCHERS,458418,14667.5,649 503 520
BEIS,Met Office,2021-07-26,06 ACCOMMODATION,CHIEF FINANCIAL OFFICER,EDF ENERGY CUSTOMERS PLC,458427,2926.47,523041202
BEIS,Met Office,2021-07-26,FIXTURE & FITTINGS,CHIEF FINANCIAL OFFICER,SIGNS EXPRESS (EXETER),458441,1064,631397439
BEIS,Met Office,2021-07-26,06 ACCOMMODATION,CHIEF FINANCIAL OFFICER,SHETLAND CLEANING SERVICES,458460,739.97,430028404
BEIS,Met Office,2021-07-26,06 ACCOMMODATION,CHIEF FINANCIAL OFFICER,POWER NI ENERGY LTD,458461,116.37,617518142
BEIS,Met Office,2021-07-26,06 ACCOMMODATION,CHIEF FINANCIAL OFFICER,ABOVE THE REST COMMERCIAL CLEANING LTD,458462,41,166969348
BEIS,Met Office,2021-07-26,06 ACCOMMODATION,CHIEF FINANCIAL OFFICER,South West Water Ltd,458464,1201.73,236873674
BEIS,Met Office,2021-07-26,11 SERVICES,SERVICES,DHL INTERNATIONAL (UK) LTD,458465,11,751812341
BEIS,Met Office,2021-07-26,11 SERVICES,CHIEF FINANCIAL OFFICER,BT plc,458466,0.69,245719348
BEIS,Met Office,2021-07-26,11 SERVICES,CHIEF FINANCIAL OFFICER,BT CONFERENCING,458467,97.78,245719348
BEIS,Met Office,2021-07-26,06 ACCOMMODATION,CHIEF FINANCIAL OFFICER,CALOR GAS LIMITED,458468,537.25,207610984
BEIS,Met Office,2021-07-26,06 ACCOMMODATION,CHIEF FINANCIAL OFFICER,Scottish Government,458509,30706,888842551
BEIS,Met Office,2021-07-28,10 EQUIPMENT MAINTENANCE,SERVICES,SCIENCE PUMP CORPORATION,10298,1581.25,NOVAT
BEIS,Met Office,2021-07-28,11 SERVICES,SERVICES,METOCEAN TELEMATICS LTD,10304,399.83,-
BEIS,Met Office,2021-07-28,12 INTERNATIONAL,MARKETS,SPREP,10320,40007.19,-
BEIS,Met Office,2021-07-28,11 SERVICES,MARKETS,ECMWF,22423,10909.79,NOTVATREG
BEIS,Met Office,2021-07-28,11 SERVICES,MARKETS,ECMWF,22440,2167.58,NOTVATREG
BEIS,Met Office,2021-07-28,11 SERVICES,MARKETS,ECMWF,22443,1667.49,NOTVATREG
BEIS,Met Office,2021-07-28,11 SERVICES,MARKETS,ECMWF,22448,5948.52,NOTVATREG
BEIS,Met Office,2021-07-28,07 EQUIPMENT,SCIENCE,OMNISYS INSTRUMENTS AB,22653,8613.68,SE556454668601
BEIS,Met Office,2021-07-28,11 SERVICES,MARKETS,ECMWF,22707,8435.24,NOTVATREG
BEIS,Met Office,2021-07-28,11 SERVICES,MARKETS,ECMWF,22708,5072.07,NOTVATREG
BEIS,Met Office,2021-07-28,11 SERVICES,MARKETS,ECMWF,22709,541.91,NOTVATREG
BEIS,Met Office,2021-07-28,11 SERVICES,MARKETS,ECMWF,22710,428.91,NOTVATREG
BEIS,Met Office,2021-07-28,11 SERVICES,MARKETS,ECMWF,22711,28522.36,NOTVATREG
BEIS,Met Office,2021-07-28,11 SERVICES,MARKETS,ECMWF,22712,1361.77,NOTVATREG
BEIS,Met Office,2021-07-28,11 SERVICES,MARKETS,ECMWF,22713,716.89,NOTVATREG
BEIS,Met Office,2021-07-28,11 SERVICES,MARKETS,ECMWF,22714,30152.21,NOTVATREG
BEIS,Met Office,2021-07-28,11 SERVICES,MARKETS,ECMWF,22715,1905.23,NOTVATREG
BEIS,Met Office,2021-07-28,11 SERVICES,MARKETS,ECMWF,22716,455.98,NOTVATREG
BEIS,Met Office,2021-07-28,11 SERVICES,MARKETS,ECMWF,22717,3565.68,NOTVATREG
BEIS,Met Office,2021-07-28,11 SERVICES,MARKETS,ECMWF,22718,255.39,NOTVATREG
BEIS,Met Office,2021-07-28,11 SERVICES,MARKETS,ECMWF,22719,2089.17,NOTVATREG
BEIS,Met Office,2021-07-28,11 SERVICES,MARKETS,ECMWF,22720,30152.21,NOTVATREG
BEIS,Met Office,2021-07-28,11 SERVICES,MARKETS,ECMWF,22721,30152.21,NOTVATREG
BEIS,Met Office,2021-07-28,11 SERVICES,MARKETS,ECMWF,22722,4289.08,NOTVATREG
BEIS,Met Office,2021-07-28,11 SERVICES,MARKETS,ECMWF,22723,-5967.14,NOTVATREG
BEIS,Met Office,2021-07-28,11 SERVICES,MARKETS,ECMWF,22724,5079.43,NOTVATREG
BEIS,Met Office,2021-07-28,11 SERVICES,MARKETS,ECMWF,22725,-32.85,NOTVATREG
BEIS,Met Office,2021-07-28,11 SERVICES,MARKETS,ECMWF,22726,-5.98,NOTVATREG
BEIS,Met Office,2021-07-28,11 SERVICES,MARKETS,ECMWF,22727,-10943.93,NOTVATREG
BEIS,Met Office,2021-07-28,11 SERVICES,MARKETS,ECMWF,22728,-1672.71,NOTVATREG
BEIS,Met Office,2021-07-28,11 SERVICES,MARKETS,ECMWF,22729,-2174.37,NOTVATREG
BEIS,Met Office,2021-07-28,11 SERVICES,MARKETS,ECMWF,22730,10293.79,NOTVATREG
BEIS,Met Office,2021-07-28,11 SERVICES,MARKETS,ECMWF,22731,2144.54,NOTVATREG
BEIS,Met Office,2021-07-28,11 SERVICES,MARKETS,ECMWF,22732,3002.35,NOTVATREG
BEIS,Met Office,2021-07-28,11 SERVICES,MARKETS,ECMWF,22733,30152.21,NOTVATREG
BEIS,Met Office,2021-07-28,11 SERVICES,MARKETS,ECMWF,22734,4604.15,NOTVATREG
BEIS,Met Office,2021-07-28,11 SERVICES,MARKETS,ECMWF,22735,9302.35,NOTVATREG
BEIS,Met Office,2021-07-28,11 SERVICES,MARKETS,ECMWF,22736,443.36,NOTVATREG
BEIS,Met Office,2021-07-28,11 SERVICES,MARKETS,ECMWF,22737,1389.08,NOTVATREG
BEIS,Met Office,2021-07-28,11 SERVICES,MARKETS,ECMWF,22738,30152.21,NOTVATREG
BEIS,Met Office,2021-07-28,11 SERVICES,MARKETS,ECMWF,22739,673.49,NOTVATREG
BEIS,Met Office,2021-07-28,11 SERVICES,MARKETS,ECMWF,22740,4431.99,NOTVATREG
BEIS,Met Office,2021-07-28,11 SERVICES,MARKETS,ECMWF,22741,2144.54,NOTVATREG
BEIS,Met Office,2021-07-28,11 SERVICES,MARKETS,ECMWF,22742,1715.63,NOTVATREG
BEIS,Met Office,2021-07-28,11 SERVICES,MARKETS,ECMWF,22743,1715.63,NOTVATREG
BEIS,Met Office,2021-07-28,11 SERVICES,MARKETS,ECMWF,22744,9940.3,NOTVATREG
BEIS,Met Office,2021-07-28,11 SERVICES,MARKETS,ECMWF,22745,9402.98,NOTVATREG
BEIS,Met Office,2021-07-28,11 SERVICES,MARKETS,ECMWF,22746,914.7,NOTVATREG
BEIS,Met Office,2021-07-28,11 SERVICES,MARKETS,ECMWF,22747,69.41,NOTVATREG
BEIS,Met Office,2021-07-28,11 SERVICES,MARKETS,ECMWF,22748,932.86,NOTVATREG
BEIS,Met Office,2021-07-28,11 SERVICES,MARKETS,ECMWF,22749,9302.35,NOTVATREG
BEIS,Met Office,2021-07-28,11 SERVICES,MARKETS,ECMWF,22750,563.91,NOTVATREG
BEIS,Met Office,2021-07-28,11 SERVICES,MARKETS,ECMWF,22751,862.02,NOTVATREG
BEIS,Met Office,2021-07-28,11 SERVICES,MARKETS,ECMWF,22752,19119.38,NOTVATREG
BEIS,Met Office,2021-07-28,11 SERVICES,MARKETS,ECMWF,22753,20211.91,NOTVATREG
BEIS,Met Office,2021-07-28,11 SERVICES,MARKETS,ECMWF,22754,169.26,NOTVATREG
BEIS,Met Office,2021-07-28,11 SERVICES,MARKETS,ECMWF,22755,1604.75,NOTVATREG
BEIS,Met Office,2021-07-28,11 SERVICES,MARKETS,ECMWF,22756,28522.36,NOTVATREG
BEIS,Met Office,2021-07-28,11 SERVICES,MARKETS,ECMWF,22757,997.33,NOTVATREG
BEIS,Met Office,2021-07-28,11 SERVICES,MARKETS,ECMWF,22758,30152.21,NOTVATREG
BEIS,Met Office,2021-07-28,11 SERVICES,MARKETS,ECMWF,22759,12319.76,NOTVATREG
BEIS,Met Office,2021-07-28,11 SERVICES,MARKETS,ECMWF,22760,15139.12,NOTVATREG
BEIS,Met Office,2021-07-28,11 SERVICES,MARKETS,ECMWF,22761,3395.39,NOTVATREG
BEIS,Met Office,2021-07-28,11 SERVICES,MARKETS,ECMWF,22762,30152.21,NOTVATREG
BEIS,Met Office,2021-07-28,11 SERVICES,MARKETS,ECMWF,22763,2211.49,NOTVATREG
BEIS,Met Office,2021-07-28,11 SERVICES,MARKETS,ECMWF,22764,30152.21,NOTVATREG
BEIS,Met Office,2021-07-28,11 SERVICES,MARKETS,ECMWF,22765,30152.21,NOTVATREG
BEIS,Met Office,2021-07-28,11 SERVICES,MARKETS,ECMWF,22766,3286.71,NOTVATREG
BEIS,Met Office,2021-07-28,11 SERVICES,MARKETS,ECMWF,22767,3995.31,NOTVATREG
BEIS,Met Office,2021-07-28,11 SERVICES,MARKETS,ECMWF,22768,30152.21,NOTVATREG
BEIS,Met Office,2021-07-28,11 SERVICES,MARKETS,ECMWF,22769,1252.16,NOTVATREG
BEIS,Met Office,2021-07-28,11 SERVICES,MARKETS,ECMWF,22770,1252.19,NOTVATREG
BEIS,Met Office,2021-07-28,11 SERVICES,MARKETS,ECMWF,22771,1038.94,NOTVATREG
BEIS,Met Office,2021-07-28,11 SERVICES,MARKETS,ECMWF,22772,3939.34,NOTVATREG
BEIS,Met Office,2021-07-28,11 SERVICES,MARKETS,ECMWF,22773,1018.66,NOTVATREG
BEIS,Met Office,2021-07-28,11 SERVICES,MARKETS,ECMWF,22774,387.62,NOTVATREG
BEIS,Met Office,2021-07-28,11 SERVICES,MARKETS,ECMWF,22775,1018.66,NOTVATREG
BEIS,Met Office,2021-07-28,11 SERVICES,MARKETS,ECMWF,22776,7454.54,NOTVATREG
BEIS,Met Office,2021-07-28,11 SERVICES,MARKETS,ECMWF,22777,30152.21,NOTVATREG
BEIS,Met Office,2021-07-28,11 SERVICES,MARKETS,ECMWF,22778,30152.21,NOTVATREG
BEIS,Met Office,2021-07-28,11 SERVICES,MARKETS,ECMWF,22779,9223.75,NOTVATREG
BEIS,Met Office,2021-07-28,11 SERVICES,MARKETS,ECMWF,22780,1786.27,NOTVATREG
BEIS,Met Office,2021-07-28,13 MISCELLANEOUS,CHIEF FINANCIAL OFFICER,DEMSTAR BUSINESS SOLUTIONS LTD,22792,97.74,10156145J
BEIS,Met Office,2021-07-28,11 SERVICES,SCIENCE,"LINDE GAS ESPANA, S.A.U.",22805,100.97,-
BEIS,Met Office,2021-07-28,11 SERVICES,CHIEF FINANCIAL OFFICER,TELIA FINLAND OYJ,22904,152.91,FI14756079
BEIS,Met Office,2021-07-28,11 SERVICES,CHIEF FINANCIAL OFFICER,EIR,22918,52.32,4736919B
BEIS,Met Office,2021-07-28,11 SERVICES,CHIEF FINANCIAL OFFICER,DBS FINANCE RECEIPTS CTS,22921,167.46,888805068
BEIS,Met Office,2021-07-28,06 ACCOMMODATION,CHIEF FINANCIAL OFFICER,Exeter City Council,453747,140288,142335594
BEIS,Met Office,2021-07-28,11 SERVICES,CHIEF FINANCIAL OFFICER,HMRC AR RECEIPTS,457361,31251.73,888848141
BEIS,Met Office,2021-07-28,11 SERVICES,SERVICES,APPLIED SATELLITE TECHNOLOGY SYSTEMS LTD,457459,44.12,720108683
BEIS,Met Office,2021-07-28,11 SERVICES,SERVICES,APPLIED SATELLITE TECHNOLOGY SYSTEMS LTD,457461,59.94,720108683
BEIS,Met Office,2021-07-28,11 SERVICES,SERVICES,APPLIED SATELLITE TECHNOLOGY SYSTEMS LTD,457473,124.84,720108683
BEIS,Met Office,2021-07-28,11 SERVICES,PEOPLE,PLURALSIGHT,457793,681.24,EU826020045
BEIS,Met Office,2021-07-28,11 SERVICES,TECHNOLOGY AND CIO,BLOOMREACH B.V.,457818,234593,NL815260076B01
BEIS,Met Office,2021-07-28,11 SERVICES,CHIEF FINANCIAL OFFICER,MITIE SECURITY LTD,457904,1630.76,416706654
BEIS,Met Office,2021-07-28,13 MISCELLANEOUS,SCIENCE,University of Edinburgh,458049,1000,592950700
BEIS,Met Office,2021-07-28,11 SERVICES,SERVICES,DHL INTERNATIONAL (UK) LTD,458074,285.28,751812341
BEIS,Met Office,2021-07-28,CYCLESCHEME,OTHER,EDENRED UK (CYCLESCHEME),458132,3518.81,649 503 520
BEIS,Met Office,2021-07-28,11 SERVICES,CHIEF FINANCIAL OFFICER,SWISSCOM (SCHWEIZ) AG,458212,86.52,-
BEIS,Met Office,2021-07-28,06 ACCOMMODATION,CHIEF FINANCIAL OFFICER,THORLUX LIGHTING,458221,214.09,GB 109 939 440
BEIS,Met Office,2021-07-28,11 SERVICES,PROGRAMMES,BAE SYSTEMS APPLIED INTELLIGENCE LIMITED,458243,2824,GB641407169
BEIS,Met Office,2021-07-28,11 SERVICES,PROGRAMMES,BAE SYSTEMS APPLIED INTELLIGENCE LIMITED,458244,24423.84,GB641407169
BEIS,Met Office,2021-07-28,11 SERVICES,PROGRAMMES,BAE SYSTEMS APPLIED INTELLIGENCE LIMITED,458245,11880,GB641407169
BEIS,Met Office,2021-07-28,11 SERVICES,PROGRAMMES,BAE SYSTEMS APPLIED INTELLIGENCE LIMITED,458246,9380,GB641407169
BEIS,Met Office,2021-07-28,11 SERVICES,PROGRAMMES,BAE SYSTEMS APPLIED INTELLIGENCE LIMITED,458318,25586.88,GB641407169
BEIS,Met Office,2021-07-28,11 SERVICES,CHIEF FINANCIAL OFFICER,INTEROUTE COMMUNICATIONS LIMITED,458325,4931.94,832 7071 39
BEIS,Met Office,2021-07-28,07 EQUIPMENT,SERVICES,Campbell Scientific Ltd,458369,3266.3,428453933
BEIS,Met Office,2021-07-28,INFORMATION TECHNOLOGY,PROGRAMMES,Campbell Scientific Ltd,458370,180,428453933
BEIS,Met Office,2021-07-28,11 SERVICES,PROGRAMMES,Campbell Scientific Ltd,458370,1552.5,428453933
BEIS,Met Office,2021-07-28,08 SOFTWARE LICENCES,OFFICE OF THE CEO,DILIGENT BOARDBOOKS LIMITED,458381,31928.88,929451011
BEIS,Met Office,2021-07-28,11 SERVICES,MARKETS,NCCL AUDITORS,458413,2640,40-031300-E
BEIS,Met Office,2021-07-28,07 EQUIPMENT,PROGRAMMES,COMPUTACENTER (UK) LTD,458416,2350.65,490334648
BEIS,Met Office,2021-07-28,COMPUTER SOFTWARE,SERVICES,APPLIED SATELLITE TECHNOLOGY SYSTEMS LTD,458428,9114.32,720108683
BEIS,Met Office,2021-07-28,11 SERVICES,SERVICES,APPLIED SATELLITE TECHNOLOGY SYSTEMS LTD,458429,43.78,720108683
BEIS,Met Office,2021-07-28,11 SERVICES,SERVICES,APPLIED SATELLITE TECHNOLOGY SYSTEMS LTD,458432,60.75,720108683
BEIS,Met Office,2021-07-28,04 CONTRACTORS,PEOPLE,JOBSEEKERS RECRUITMENT SERVICES LTD,458445,538.08,130 1297 14
BEIS,Met Office,2021-07-28,04 CONTRACTORS,OFFICE OF THE CEO,JOBSEEKERS RECRUITMENT SERVICES LTD,458446,638.4,130 1297 14
BEIS,Met Office,2021-07-28,04 CONTRACTORS,MARKETS,JOBSEEKERS RECRUITMENT SERVICES LTD,458447,674.88,130 1297 14
BEIS,Met Office,2021-07-28,04 CONTRACTORS,PEOPLE,JOBSEEKERS RECRUITMENT SERVICES LTD,458448,547.2,130 1297 14
BEIS,Met Office,2021-07-28,04 CONTRACTORS,CHIEF FINANCIAL OFFICER,JOBSEEKERS RECRUITMENT SERVICES LTD,458449,674.88,130 1297 14
BEIS,Met Office,2021-07-28,04 CONTRACTORS,MARKETS,JOBSEEKERS RECRUITMENT SERVICES LTD,458450,674.88,130 1297 14
BEIS,Met Office,2021-07-28,STOCK,SERVICES,Campbell Scientific Ltd,458451,0,428453933
BEIS,Met Office,2021-07-28,TRADE CREDITORS,SERVICES,Campbell Scientific Ltd,458451,10890,428453933
BEIS,Met Office,2021-07-28,11 SERVICES,SERVICES,Campbell Scientific Ltd,458451,69,428453933
BEIS,Met Office,2021-07-28,04 CONTRACTORS,CHIEF FINANCIAL OFFICER,JOBSEEKERS RECRUITMENT SERVICES LTD,458452,410.4,130 1297 14
BEIS,Met Office,2021-07-28,04 CONTRACTORS,PEOPLE,MATRIX SCM LIMITED,458453,227349.79,249 5734 68
BEIS,Met Office,2021-07-28,04 CONTRACTORS,TECHNOLOGY AND CIO,HAYS SPECIALIST RECRUITMENT LTD,458456,567.59,773695871
BEIS,Met Office,2021-07-28,11 SERVICES,CHIEF FINANCIAL OFFICER,DIGITAL COMMUNICATIONS SYSTEMS LIMITED,458458,4002.43,GB 556 1971 19
BEIS,Met Office,2021-07-28,06 ACCOMMODATION,CHIEF FINANCIAL OFFICER,ENVIRONMENT AGENCY RECEIPTS,458459,991.97,662490134
BEIS,Met Office,2021-07-28,11 SERVICES,CHIEF FINANCIAL OFFICER,MITIE SECURITY LTD,458495,300,416706654
BEIS,Met Office,2021-07-28,08 SOFTWARE LICENCES,CHIEF FINANCIAL OFFICER,CEMAR,458496,180,915042161
BEIS,Met Office,2021-07-28,11 SERVICES,PEOPLE,ECA INTERNATIONAL,458506,8064,238549825
BEIS,Met Office,2021-07-28,12 INTERNATIONAL,MARKETS,MACITECHSY SOLUTIONS,458507,640,-
BEIS,Met Office,2021-07-28,11 SERVICES,PEOPLE,LB TRAINING LTD,458508,200,-
BEIS,Met Office,2021-07-28,06 ACCOMMODATION,CHIEF FINANCIAL OFFICER,Mitie Landscapes Ltd,458510,104.52,GB 416 706 654
BEIS,Met Office,2021-07-28,06 ACCOMMODATION,CHIEF FINANCIAL OFFICER,Mitie Landscapes Ltd,458511,709.8,GB 416 706 654
BEIS,Met Office,2021-07-28,06 ACCOMMODATION,CHIEF FINANCIAL OFFICER,Mitie Landscapes Ltd,458512,1403.9,GB 416 706 654
BEIS,Met Office,2021-07-28,06 ACCOMMODATION,CHIEF FINANCIAL OFFICER,Mitie Landscapes Ltd,458513,3180,GB 416 706 654
BEIS,Met Office,2021-07-28,06 ACCOMMODATION,CHIEF FINANCIAL OFFICER,Mitie Landscapes Ltd,458514,264.62,GB 416 706 654
BEIS,Met Office,2021-07-28,03 STAFF COSTS T&S,CHIEF FINANCIAL OFFICER,ENTERPRISE RENT A CAR UK LTD,458520,250,215557314
BEIS,Met Office,2021-07-28,11 SERVICES,MARKETS,ULTRA ELECTRONICS LTD NUCLEAR CONTROL SYSTEMS,458539,9923.67,123340754
BEIS,Met Office,2021-07-28,11 SERVICES,MARKETS,ULTRA ELECTRONICS LTD NUCLEAR CONTROL SYSTEMS,458540,8152.88,123340754
BEIS,Met Office,2021-07-28,11 SERVICES,MARKETS,ULTRA ELECTRONICS LTD NUCLEAR CONTROL SYSTEMS,458541,8152.88,123340754
BEIS,Met Office,2021-07-28,INFORMATION TECHNOLOGY,TECHNOLOGY AND CIO,PROBRAND LTD,458543,1062,580401565
BEIS,Met Office,2021-07-28,INFORMATION TECHNOLOGY,TECHNOLOGY AND CIO,PROBRAND LTD,458544,24606,580401565
BEIS,Met Office,2021-07-28,08 SOFTWARE LICENCES,TECHNOLOGY AND CIO,COMPUTACENTER (UK) LTD,458545,1069,490334648
BEIS,Met Office,2021-07-28,13 MISCELLANEOUS,CHIEF FINANCIAL OFFICER,BANNER GROUP LIMITED,458546,0.67,GB391085740
BEIS,Met Office,2021-07-28,07 EQUIPMENT,TECHNOLOGY AND CIO,COMPUTACENTER (UK) LTD,458547,983.97,490334648
BEIS,Met Office,2021-07-28,13 MISCELLANEOUS,CHIEF FINANCIAL OFFICER,BANNER GROUP LIMITED,458548,23.87,GB391085740
BEIS,Met Office,2021-07-28,03 STAFF COSTS T&S,CHIEF FINANCIAL OFFICER,ENTERPRISE RENT A CAR UK LTD,458549,1944,215557314
BEIS,Met Office,2021-07-28,11 SERVICES,MARKETS,MOMENTUM INCORPORATED,458553,6400,598958541
BEIS,Met Office,2021-07-28,11 SERVICES,PROGRAMMES,HOGAN LOVELLS INTERNATIONAL LLP,458567,19909.2,GB123371543
BEIS,Met Office,2021-07-28,11 SERVICES,CHIEF FINANCIAL OFFICER,APPLE CENTRAL TAXIS,458568,140.3,449238720
BEIS,Met Office,2021-07-28,06 ACCOMMODATION,CHIEF FINANCIAL OFFICER,South West Water Ltd,458570,4783.54,236873674
BEIS,Met Office,2021-07-28,11 SERVICES,CHIEF FINANCIAL OFFICER,BT plc,458573,876.22,245719348
BEIS,Met Office,2021-07-28,13 MISCELLANEOUS,CHIEF FINANCIAL OFFICER,NORSCOTT VENDING SERVICES LTD,458574,77.7,751402071
BEIS,Met Office,2021-07-28,11 SERVICES,MARKETS,ULTRA ELECTRONICS LTD NUCLEAR CONTROL SYSTEMS,458575,6086.52,123340754
BEIS,Met Office,2021-07-28,07 EQUIPMENT,SERVICES,Hydrosphere Uk Limited,458576,8252.4,641275549
BEIS,Met Office,2021-07-28,04 CONTRACTORS,OFFICE OF THE CEO,JOBSEEKERS RECRUITMENT SERVICES LTD,458578,674.88,130 1297 14
BEIS,Met Office,2021-07-28,04 CONTRACTORS,PEOPLE,JOBSEEKERS RECRUITMENT SERVICES LTD,458579,674.88,130 1297 14
BEIS,Met Office,2021-07-28,04 CONTRACTORS,MARKETS,JOBSEEKERS RECRUITMENT SERVICES LTD,458580,264.48,130 1297 14
BEIS,Met Office,2021-07-28,04 CONTRACTORS,PEOPLE,JOBSEEKERS RECRUITMENT SERVICES LTD,458581,674.88,130 1297 14
BEIS,Met Office,2021-07-28,04 CONTRACTORS,CHIEF FINANCIAL OFFICER,JOBSEEKERS RECRUITMENT SERVICES LTD,458582,410.4,130 1297 14
BEIS,Met Office,2021-07-28,04 CONTRACTORS,CHIEF FINANCIAL OFFICER,JOBSEEKERS RECRUITMENT SERVICES LTD,458583,273.6,130 1297 14
BEIS,Met Office,2021-07-28,06 ACCOMMODATION,CHIEF FINANCIAL OFFICER,CBRE MANAGED SERVICES LTD,458584,27079.82,853936883
BEIS,Met Office,2021-07-28,11 SERVICES,TECHNOLOGY AND CIO,BOXXE,458586,484,734245248
BEIS,Met Office,2021-07-28,13 MISCELLANEOUS,PEOPLE,HEALTH MANAGEMENT LTD,458587,4652.31,792250621
BEIS,Met Office,2021-07-28,11 SERVICES,SERVICES,VOLKSWAGEN GROUP LEASING,458588,3697.1,BG745963883
BEIS,Met Office,2021-07-28,11 SERVICES,MARKETS,SOCIAL SENSING LTD,458589,5768,-
BEIS,Met Office,2021-07-28,06 ACCOMMODATION,CHIEF FINANCIAL OFFICER,CBRE MANAGED SERVICES LTD,458593,13181.78,853936883
BEIS,Met Office,2021-07-28,06 ACCOMMODATION,CHIEF FINANCIAL OFFICER,CBRE MANAGED SERVICES LTD,458594,94.73,853936883
BEIS,Met Office,2021-07-28,06 ACCOMMODATION,CHIEF FINANCIAL OFFICER,CBRE MANAGED SERVICES LTD,458594,2384.31,853936883
BEIS,Met Office,2021-07-28,06 ACCOMMODATION,CHIEF FINANCIAL OFFICER,CBRE MANAGED SERVICES LTD,458594,4078.96,853936883
BEIS,Met Office,2021-07-28,06 ACCOMMODATION,CHIEF FINANCIAL OFFICER,CBRE MANAGED SERVICES LTD,458594,1616.92,853936883
BEIS,Met Office,2021-07-28,06 ACCOMMODATION,CHIEF FINANCIAL OFFICER,CBRE MANAGED SERVICES LTD,458594,136.72,853936883
BEIS,Met Office,2021-07-28,06 ACCOMMODATION,CHIEF FINANCIAL OFFICER,South West Water Ltd,458599,6057.27,236873674
BEIS,Met Office,2021-07-28,11 SERVICES,MARKETS,SOCIAL SENSING LTD,458600,2758,-
BEIS,Met Office,2021-07-28,06 ACCOMMODATION,CHIEF FINANCIAL OFFICER,South West Water Ltd,458604,1445.56,236873674
BEIS,Met Office,2021-07-28,PAYE AND VAT,OTHER,HMRC,458605,4085595.8,-
BEIS,Met Office,2021-07-28,06 ACCOMMODATION,CHIEF FINANCIAL OFFICER,REDACTIED PERSONAL DATA,458521,960,-
BEIS,Met Office,2021-07-30,13 MISCELLANEOUS,CHIEF FINANCIAL OFFICER,EDEN SPRINGS UK LTD,457838,-2.41,232160411
BEIS,Met Office,2021-07-30,11 SERVICES,TECHNOLOGY AND CIO,BAE SYSTEMS APPLIED INTELLIGENCE LIMITED,458042,2640,GB641407169
BEIS,Met Office,2021-07-30,11 SERVICES,SERVICES,APPLIED SATELLITE TECHNOLOGY SYSTEMS LTD,458430,233.04,720108683
BEIS,Met Office,2021-07-30,12 INTERNATIONAL,MARKETS,CROWN AGENTS BANK,458571,13655.59,-
BEIS,Met Office,2021-07-30,11 SERVICES,SERVICES,DHL INTERNATIONAL (UK) LTD,458585,11,751812341
BEIS,Met Office,2021-07-30,11 SERVICES,CHIEF FINANCIAL OFFICER,SSE CONTRACTING LTD,458601,3750,382894546
BEIS,Met Office,2021-07-30,11 SERVICES,CHIEF FINANCIAL OFFICER,SSE CONTRACTING LTD,458602,4000,382894546
BEIS,Met Office,2021-07-30,06 ACCOMMODATION,SERVICES,J J HARRISON LANDSCAPES LTD,458603,180,317 0006 12
BEIS,Met Office,2021-07-30,11 SERVICES,CHIEF FINANCIAL OFFICER,MITIE SECURITY LTD,458619,10263.36,416706654
BEIS,Met Office,2021-07-30,11 SERVICES,CHIEF FINANCIAL OFFICER,MITIE SECURITY LTD,458622,20526.35,416706654
BEIS,Met Office,2021-07-30,10 EQUIPMENT MAINTENANCE,TECHNOLOGY AND CIO,COMPUTACENTER (UK) LTD,458623,43340.49,490334648
BEIS,Met Office,2021-07-30,10 EQUIPMENT MAINTENANCE,TECHNOLOGY AND CIO,COMPUTACENTER (UK) LTD,458624,2190.89,490334648
BEIS,Met Office,2021-07-30,13 MISCELLANEOUS,SERVICES,DHL GLOBAL FORWARDING (UK) LTD,458625,9205.8,745260438
BEIS,Met Office,2021-07-30,07 EQUIPMENT,TECHNOLOGY AND CIO,COMPUTACENTER (UK) LTD,458626,5149,490334648
BEIS,Met Office,2021-07-30,13 MISCELLANEOUS,CHIEF FINANCIAL OFFICER,EDEN SPRINGS UK LTD,458627,414.65,232160411
BEIS,Met Office,2021-07-30,11 SERVICES,PROGRAMMES,BAE SYSTEMS APPLIED INTELLIGENCE LIMITED,458628,99855,GB641407169
BEIS,Met Office,2021-07-30,06 ACCOMMODATION,CHIEF FINANCIAL OFFICER,Mitie Landscapes Ltd,458673,5904.87,GB 416 706 654
BEIS,Met Office,2021-07-30,06 ACCOMMODATION,CHIEF FINANCIAL OFFICER,BAE SYSTEMS MARINE LTD,458677,120,641407169
BEIS,Met Office,2021-07-30,06 ACCOMMODATION,CHIEF FINANCIAL OFFICER,HUNTSHAM ESTATE - CROSS NO.1 SETTLEMENT,458683,5065.16,-
BEIS,Met Office,2021-07-30,11 SERVICES,PROGRAMMES,HOGAN LOVELLS INTERNATIONAL LLP,458684,259708.32,GB123371543
BEIS,Met Office,2021-07-30,11 SERVICES,PROGRAMMES,HOGAN LOVELLS INTERNATIONAL LLP,458685,3060.42,GB123371543
